{"text_format":"1","workbook":"xlsx","n_sheets":5,"sheets":["Main Page","QEC Calculator","Exposure Breakdown","Sheet3","Sheet2"],"not_rendered":{"charts":0,"images":7,"macros":1,"external_links":0,"defined_names":77,"comments":0,"pivot_tables":0},"unopened":[],"bounds":{"document_bytes":16777216,"sheet_cells":100000,"rows_first":2000,"rows_last":500,"rows_between":2000,"halvings":0,"cell_chars":16384,"cell_head_chars":4096},"cells_cut":0,"cells_raw":0,"read":"whole","date_system":"1900"}

{"sheet":"Main Page","index":0,"n_rows":6,"n_cols":2,"rows_kept":6,"cut":false,"hidden":false,"merged":[[5,18,5,30],[1,1,1,13],[5,1,5,13],[3,1,3,13],[2,1,2,13],[4,1,4,13]]}
[]
[null,"Quick Exposure Check (QEC) Calculator"]
[null,"The QEC is perhaps one of the most straightforward workplace assessment tools.  Some highlights of the QEC include:\n   • Assesses exposure to four body areas (back, shoulder/arm, wrist/hand, and neck)\n   • Identifies areas of needed exposure reduction. \n   • Assesses the change in exposure to musculoskeletal risk factors before and after an ergonomic intervention. \n   • Involves both the evaluator and the worker in conducting the assessment and identifying solutions .\n   • Can compare exposures between two or more people performing the same task.\n"]
[null,"For additional information please refer to the Quick Exposure Check (QEC) Reference Guide"]
[null,"David G, Woods V, Li G, Buckle P. The development of the Quick Exposure Check (QEC) for assessing exposure to risk factors for work-related musculoskeletal disorders. Applied Ergonomics. 2008 Jan;39(1):57-69. DOI: 10.1016/j.apergo.2007.03.002. PMID: 17512492."]
[null,"IMPORTANT NOTE:\nThis spreadsheet tool has been designed for use with Microsoft Excel 365.  Using the tool in earlier versions of Excel may affect the performance of the tool for formatting.  This document also utilizes macros and you must accept them in order for the tool to function properly  "]

{"sheet":"QEC Calculator","index":1,"n_rows":41,"n_cols":12,"rows_kept":41,"cut":false,"hidden":false,"merged":[[14,8,22,15],[13,6,14,6],[15,1,17,1],[18,1,19,1],[20,1,21,1]]}
[]
[]
[]
[]
[]
[]
[]
[]
[]
[]
[null,"Assessor's Name:",null,"Job Title:"]
[null,"Worker's Name:"]
[null,"Date of Assessment:"]
[null,null,null,"Task 1","Task 2","Task 3",{"$error":"#VALUE!"}]
[null,null,null,"Insert Task Name","Insert Task Name","Insert Task Name",null,null,{"$f":" _xlfn.XLOOKUP(G16,Table1[Body Segment],Table1[Image])","v":{"$error":"#VALUE!"}}]
[null,"Back\n(Assessor)","When performing the task, is the back","Select","Select","Select","Spine"]
[null,null,"Is lifting pushing/pulling or carrying part of the task?","Select","Select","Select"]
[null,null,{"$f":"IF($D$17=\"Yes\",Sheet2!B6,IF($D$17=\"No\",Sheet2!C6,))","v":0},"Select","Select","Select"]
[null,"Shoulder/Arm\n(Assessor)","When the task is performed, are the hands:","Select","Select","Select"]
[null,null,"Is the shoulder/arm movement:","Select","Select","Select"]
[null,"Wrist/Hand\n(Assessor)","Is the task performed with","Select","Select","Select"]
[null,null,"Are there similar motion patterns repeated","Select","Select","Select"]
[null,"Neck\n (Assessor)","When performing the task, is the head/neck bent or twisted?","Select","Select","Select"]
[null,"Maximum Weight Handled\n(Worker)","Is the maximum weight handled manually for this task:","Select","Select","Select"]
[null,"Duration\n(Worker)","On average, how much time do you spend per day performing this task?","Select","Select","Select"]
[null,"Maximum Force Exerted\n(Worker)","When performing this task, what is the maximum amount for force exerted by one hand?","Select","Select","Select"]
[null,"Vibration\n(Worker)","At work, how long are vibratory tools used for? ","Select","Select","Select"]
[null,"Driving\n(Worker)","At work, is a vehicle driven for:","Select","Select","Select"]
[null,"Visual Demands\n(Worker)","Are the visual demands for this task:","Select","Select","Select"]
[null,"Work Pace\n(Worker)","Is there difficulty keeping up with the pace of the work?","Select","Select","Select",null,null,null,null,null," "]
[null,"Stress\n(Worker)","In general, how stressful is this job?","Select","Select","Select"]
[]
[null,"Exposure Legend","Total Back Exposure (Static)",{"$f":"+Sheet2!X3","v":""},{"$f":"+Sheet2!AM3","v":""},{"$f":"+Sheet2!BA3","v":""}]
[null,"None","Total Back Exposure (Moving)",{"$f":"+Sheet2!X4","v":""},{"$f":"+Sheet2!AM4","v":""},{"$f":"+Sheet2!BA4","v":""}]
[null,"Low","Total Shoulder/Arm Exposure",{"$f":"+Sheet2!V5","v":0},{"$f":"+Sheet2!AK5","v":0},{"$f":"+Sheet2!AY5","v":0}]
[null,"Moderate","Total Wrist/Hand Exposure",{"$f":"+Sheet2!V6","v":0},{"$f":"+Sheet2!AK6","v":0},{"$f":"+Sheet2!AY6","v":0}]
[null,"High","Total Neck Exposure",{"$f":"+Sheet2!V7","v":0},{"$f":"+Sheet2!AK7","v":0},{"$f":"+Sheet2!AY7","v":0}]
[null,"Very High","Total Driving Exposure",{"$f":"+Sheet2!V8","v":0},{"$f":"+Sheet2!AK8","v":0},{"$f":"+Sheet2!AY8","v":0}]
[null,null,"Total Vibration Exposure",{"$f":"+Sheet2!V9","v":0},{"$f":"+Sheet2!AK9","v":0},{"$f":"+Sheet2!AY9","v":0}]
[null,null,"Total Work Pace Exposure",{"$f":"+Sheet2!V10","v":0},{"$f":"+Sheet2!AK10","v":0},{"$f":"+Sheet2!AY10","v":0}]
[null,null,"Total Stress Exposure",{"$f":"+Sheet2!V11","v":0},{"$f":"+Sheet2!AK11","v":0},{"$f":"+Sheet2!AY11","v":0}]

{"sheet":"Exposure Breakdown","index":2,"n_rows":46,"n_cols":6,"rows_kept":46,"cut":false,"hidden":false,"merged":[[44,1,45,1],[42,1,43,1],[40,1,41,1],[38,1,39,1],[12,1,16,1],[17,1,22,1],[23,1,28,1],[29,1,34,1],[35,1,37,1]]}
[]
[]
[]
[]
[]
[]
[]
[]
[]
[]
[null,null,null,"Task 1","Task 2","Task 3"]
[null,null,null,{"$f":"'QEC Calculator'!D15","v":"Insert Task Name"},{"$f":"+'QEC Calculator'!E15","v":"Insert Task Name"},{"$f":"+'QEC Calculator'!F15","v":"Insert Task Name"}]
[null,"Back Exposure \n(Static)","Back Posture  & Maximum Weight ",{"$f":"+IF(Sheet2!$Q$21=0,\"\",IF(Sheet2!$Q$21>0,Sheet2!$Q$6))","v":""},{"$f":"+IF(Sheet2!$AF$21=0,\"\",IF(Sheet2!$AF$21>0,Sheet2!$AF$6))","v":""},{"$f":"+IF(Sheet2!$AT$21=0,\"\",IF(Sheet2!$AT$21>0,Sheet2!$AT$6))","v":""}]
[null,null,"Back Posture  & Duration ",{"$f":"+IF(Sheet2!$Q$21=0,\"\",IF(Sheet2!$Q$21>0,Sheet2!$Q$10))","v":""},{"$f":"+IF(Sheet2!$AF$21=0,\"\",IF(Sheet2!$AF$21>0,Sheet2!$AF$10))","v":""},{"$f":"+IF(Sheet2!$AT$21=0,\"\",IF(Sheet2!$AT$21>0,Sheet2!$AT$10))","v":""}]
[null,null,"Duration  & Maximum Weight",{"$f":"+IF(Sheet2!$Q$21=0,\"\",IF(Sheet2!$Q$21>0,Sheet2!$Q$16))","v":""},{"$f":"+IF(Sheet2!$AF$21=0,\"\",IF(Sheet2!$AF$21>0,Sheet2!$AF$16))","v":""},{"$f":"+IF(Sheet2!$AT$21=0,\"\",IF(Sheet2!$AT$21>0,Sheet2!$AT$16))","v":""}]
[null,null,"Back Static  & Duration ",{"$f":"+IF(Sheet2!$Q$21=0,\"\",IF(Sheet2!$Q$21>0,Sheet2!$Q$21))","v":""},{"$f":"+IF(Sheet2!$AF$21=0,\"\",IF(Sheet2!$AF$21>0,Sheet2!$AF$21))","v":""},{"$f":"+IF(Sheet2!$AT$21=0,\"\",IF(Sheet2!$AT$21>0,Sheet2!$AT$21))","v":""}]
[null,null,"Total",{"$f":"+SUM(D13:D16)","v":0},{"$f":"+SUM(E13:E16)","v":0},{"$f":"+SUM(F13:F16)","v":0}]
[null,"Back Exposure \n(Moving)","Back Posture  & Maximum Weight ",{"$f":"+IF(Sheet2!$Q$28=0,\"\",IF(Sheet2!$Q$28>0,Sheet2!$Q$6))","v":""},{"$f":"+IF(Sheet2!$AF$28=0,\"\",IF(Sheet2!$AF$28>0,Sheet2!$AF$6))","v":""},{"$f":"+IF(Sheet2!$AT$28=0,\"\",IF(Sheet2!$AT$28>0,Sheet2!$AT$6))","v":""}]
[null,null,"Back Posture  & Duration ",{"$f":"+IF(Sheet2!$Q$28=0,\"\",IF(Sheet2!$Q$28>0,Sheet2!$Q$10))","v":""},{"$f":"+IF(Sheet2!$AF$28=0,\"\",IF(Sheet2!$AF$28>0,Sheet2!$AF$10))","v":""},{"$f":"+IF(Sheet2!$AT$28=0,\"\",IF(Sheet2!$AT$28>0,Sheet2!$AT$10))","v":""}]
[null,null,"Duration  & Maximum Weight ",{"$f":"+IF(Sheet2!$Q$28=0,\"\",IF(Sheet2!$Q$28>0,Sheet2!$Q$16))","v":""},{"$f":"+IF(Sheet2!$AF$28=0,\"\",IF(Sheet2!$AF$28>0,Sheet2!$AF$16))","v":""},{"$f":"+IF(Sheet2!$AT$28=0,\"\",IF(Sheet2!$AT$28>0,Sheet2!$AT$16))","v":""}]
[null,null,"Back Moving & Maximum Weight ",{"$f":"+IF(Sheet2!$Q$28=0,\"\",IF(Sheet2!$Q$28>0,Sheet2!$Q$28))","v":""},{"$f":"+IF(Sheet2!$AF$28=0,\"\",IF(Sheet2!$AF$28>0,Sheet2!$AF$28))","v":""},{"$f":"+IF(Sheet2!$AT$28=0,\"\",IF(Sheet2!$AT$28>0,Sheet2!$AT$28))","v":""}]
[null,null,"Back Moving & Duration ",{"$f":"+IF(Sheet2!$Q$28=0,\"\",IF(Sheet2!$Q$28>0,Sheet2!$Q$34))","v":""},{"$f":"+IF(Sheet2!$AF$28=0,\"\",IF(Sheet2!$AF$28>0,Sheet2!$AF$34))","v":""},{"$f":"+IF(Sheet2!$AT$28=0,\"\",IF(Sheet2!$AT$28>0,Sheet2!$AT$34))","v":""}]
[null,null,"Total",{"$f":"+SUM(D18:D22)","v":0},{"$f":"+SUM(E18:E22)","v":0},{"$f":"+SUM(F18:F22)","v":0}]
[null,"Shoulder/Arm \nExposure","Arm Height  & Maximum Weight ",{"$f":"+Sheet2!Q41","v":0},{"$f":"+Sheet2!AF41","v":0},{"$f":"+Sheet2!AT41","v":0}]
[null,null,"Arm Height & Duration ",{"$f":"+Sheet2!Q47","v":0},{"$f":"+Sheet2!AF47","v":0},{"$f":"+Sheet2!AT47","v":0}]
[null,null,"Duration  & Maximum Weight",{"$f":"+Sheet2!Q54","v":0},{"$f":"+Sheet2!AF54","v":0},{"$f":"+Sheet2!AT54","v":0}]
[null,null,"Shoulder/Arm Movement  & Maximum Weight ",{"$f":"+Sheet2!Q61","v":0},{"$f":"+Sheet2!$AF$61","v":0},{"$f":"+Sheet2!AT61","v":0}]
[null,null,"Shoulder/Arm Movement & Duration ",{"$f":"+Sheet2!Q67","v":0},{"$f":"+Sheet2!AF67","v":0},{"$f":"+Sheet2!AT67","v":0}]
[null,null,"Total",{"$f":"+SUM(D24:D28)","v":0},{"$f":"+SUM(E24:E28)","v":0},{"$f":"+SUM(F24:F28)","v":0}]
[null,"Wrist/Hand \nExposure","Repeated Motion  & Maximum Force ",{"$f":"+Sheet2!Q73","v":0},{"$f":"+Sheet2!AF73","v":0},{"$f":"+Sheet2!AT73","v":0}]
[null,null,"Repeated Motion  & Duration ",{"$f":"+Sheet2!Q79","v":0},{"$f":"+Sheet2!AF79","v":0},{"$f":"+Sheet2!AT79","v":0}]
[null,null,"Duration  & Maximum Force ",{"$f":"+Sheet2!Q85","v":0},{"$f":"+Sheet2!AF85","v":0},{"$f":"+Sheet2!AT85","v":0}]
[null,null,"Wrist Posture  & Maximum Force ",{"$f":"+Sheet2!Q92","v":0},{"$f":"+Sheet2!AF92","v":0},{"$f":"+Sheet2!AT92","v":0}]
[null,null,"Wrist Posture  & Duration ",{"$f":"+Sheet2!Q98","v":0},{"$f":"+Sheet2!AF98","v":0},{"$f":"+Sheet2!AT98","v":0}]
[null,null,"Total",{"$f":"+SUM(D30:D34)","v":0},{"$f":"+SUM(E30:E34)","v":0},{"$f":"+SUM(F30:F34)","v":0}]
[null,"Neck \nExposure","Neck Posture  & Duration ",{"$f":"+Sheet2!Q104","v":0},{"$f":"+Sheet2!AF104","v":0},{"$f":"+Sheet2!AT104","v":0}]
[null,null,"Visual Demand  & Duration ",{"$f":"+Sheet2!Q110","v":0},{"$f":"+Sheet2!AF110","v":0},{"$f":"+Sheet2!AT110","v":0}]
[null,null,"Total",{"$f":"+SUM(D36:D37)","v":0},{"$f":"+SUM(E36:E37)","v":0},{"$f":"+SUM(F36:F37)","v":0}]
[null,"Driving \nExposure",null,{"$f":"+Sheet2!Q113","v":0},{"$f":"+Sheet2!AF113","v":0},{"$f":"+Sheet2!AT113","v":0}]
[null,null,"Total",{"$f":"+D39","v":0},{"$f":"+E39","v":0},{"$f":"+F39","v":0}]
[null,"Vibration \nExposure",null,{"$f":"+Sheet2!Q116","v":0},{"$f":"+Sheet2!AF116","v":0},{"$f":"+Sheet2!AT116","v":0}]
[null,null,"Total",{"$f":"+D41","v":0},{"$f":"+E41","v":0},{"$f":"+F41","v":0}]
[null,"Work Pace \nExposure",null,{"$f":"+Sheet2!Q119","v":0},{"$f":"+Sheet2!AF119","v":0},{"$f":"+Sheet2!AT119","v":0}]
[null,null,"Total",{"$f":"+D43","v":0},{"$f":"+E43","v":0},{"$f":"+F43","v":0}]
[null,"Stress \nExposure",null,{"$f":"+Sheet2!Q122","v":0},{"$f":"+Sheet2!AF122","v":0},{"$f":"+Sheet2!AT122","v":0}]
[null,null,"Total",{"$f":"+D45","v":0},{"$f":"+E45","v":0},{"$f":"+F45","v":0}]

{"sheet":"Sheet3","index":3,"n_rows":5,"n_cols":2,"rows_kept":5,"cut":false,"hidden":true,"merged":[]}
["Body Segment","Image"]
["Spine",{"$f":"_xlfn.IMAGE(\"https://static.wixstatic.com/media/1ba5b2_3a95b63747314d1cb1c33681cf6cce8a~mv2.png/v1/fill/w_600,h_259,al_c,q_85,usm_0.66_1.00_0.01,enc_avif,quality_auto/1ba5b2_3a95b63747314d1cb1c33681cf6cce8a~mv2.png\",\"Spine\",3, 175, 400)","v":{"$error":"#VALUE!"}}]
["Shoulder",{"$f":"_xlfn.IMAGE(\"https://static.wixstatic.com/media/1ba5b2_220e9f8f5d4741e6874f922824c4f6d8~mv2.png/v1/fill/w_569,h_324,al_c,q_85,enc_avif,quality_auto/1ba5b2_220e9f8f5d4741e6874f922824c4f6d8~mv2.png\",\"Shoulder\",3, 175, 400)","v":{"$error":"#VALUE!"}}]
["Wrist",{"$f":"_xlfn.IMAGE(\"https://static.wixstatic.com/media/1ba5b2_242883cbd2e74dd5b44548d506dc6a53~mv2.png/v1/fill/w_600,h_248,al_c,q_85,usm_0.66_1.00_0.01,enc_avif,quality_auto/1ba5b2_242883cbd2e74dd5b44548d506dc6a53~mv2.png\",\"Wrist\",3, 175, 350)","v":{"$error":"#VALUE!"}}]
["Neck",{"$f":"_xlfn.IMAGE(\"https://static.wixstatic.com/media/1ba5b2_27dbc57370184ea68bfbeeba9feff960~mv2.png/v1/fill/w_1470,h_292,al_c,q_90,usm_0.66_1.00_0.01,enc_auto/NECK2_edited.png\",\"Neck\",3, 175, 450)","v":{"$error":"#VALUE!"}}]

{"sheet":"Sheet2","index":4,"n_rows":122,"n_cols":53,"rows_kept":122,"cut":false,"hidden":true,"merged":[]}
["Select",null,null,null,null,null,null,null,null,null,null,null,"Task 1",null,null,null,null,null,null,null,null,null,null,null,null,null,null,"Task 2"]
["< 20° of flexion/extension, twisting, or side bending",null,null,null,null,null,null,null,null,null,null,"Calculations",null,"A1","A2","A3",null,null,null,null,null,null,null,null,null,null,"Calculations",null,"A1","A2","A3",null,null,null,null,null,null,null,null,null,"Calculations",null,"A1","A2","A3"]
["20° - 60° of flexion/extension, twisting or side bending",null,null,null,null,null,null,null,null,null,null,"Back","H1",{"$f":"IF(AND('QEC Calculator'!$D$16=\"< 20° of flexion/extension, twisting, or side bending\", 'QEC Calculator'!$D$24=\"Light: 5 kg (11 lbs.) or less\"), \"2\")","v":false},{"$f":"IF(AND('QEC Calculator'!$D$16=\"20° - 60° of flexion/extension, twisting or side bending\", 'QEC Calculator'!$D$24=\"Light: 5 kg (11 lbs.) or less\"), \"4\")","v":false},{"$f":"IF(AND('QEC Calculator'!$D$16=\"> 60° of flexion, twisting or side bending \", 'QEC Calculator'!$D$24=\"Light: 5 kg (11 lbs.) or less\"), \"6\")","v":false},null,null,null,null,"Total Back Exposure (Static)",{"$f":"(+Q6+Q10+Q16+Q21)","v":0},null,{"$f":"+IF(Q21=0,\"\",IF(Q21>0,V3))","v":""},null,null,"Back","H1",{"$f":"IF(AND('QEC Calculator'!$E$16=\"< 20° of flexion/extension, twisting, or side bending\", 'QEC Calculator'!$E$24=\"Light: 5 kg (11 lbs.) or less\"), \"2\")","v":false},{"$f":"IF(AND('QEC Calculator'!$E$16=\"20° - 60° of flexion/extension, twisting or side bending\", 'QEC Calculator'!$E$24=\"Light: 5 kg (11 lbs.) or less\"), \"4\")","v":false},{"$f":"IF(AND('QEC Calculator'!$E$16=\"> 60° of flexion, twisting or side bending \", 'QEC Calculator'!$E$24=\"Light: 5 kg (11 lbs.) or less\"), \"6\")","v":false},null,null,null,null,"Total Back Exposure (Static)",{"$f":"(+AF6+AF10+AF16+AF21)","v":0},null,{"$f":"+IF(AF21=0,\"\",IF(AF21>0,AK3))","v":""},null,"Back","H1",{"$f":"IF(AND('QEC Calculator'!$F$16=\"< 20° of flexion/extension, twisting, or side bending\", 'QEC Calculator'!$F$24=\"Light: 5 kg (11 lbs.) or less\"), \"2\")","v":false},{"$f":"IF(AND('QEC Calculator'!$F$16=\"20° - 60° of flexion/extension, twisting or side bending\", 'QEC Calculator'!$F$24=\"Light: 5 kg (11 lbs.) or less\"), \"4\")","v":false},{"$f":"IF(AND('QEC Calculator'!$F$16=\"> 60° of flexion, twisting or side bending \", 'QEC Calculator'!$F$24=\"Light: 5 kg (11 lbs.) or less\"), \"6\")","v":false},null,null,null,null,"Total Back Exposure (Static)",{"$f":"(+AT6+AT10+AT16+AT21)","v":0},null,{"$f":"+IF(AT21=0,\"\",IF(AT21>0,AY3))","v":""}]
["> 60° of flexion, twisting or side bending ",null,null,null,null,null,null,null,null,null,null,null,"H2",{"$f":"IF(AND('QEC Calculator'!$D$16=\"< 20° of flexion/extension, twisting, or side bending\", 'QEC Calculator'!$D$24=\"Moderate: 6 - 10 kg (13 - 22 lbs.)\"), \"4\")","v":false},{"$f":"IF(AND('QEC Calculator'!$D$16=\"20° - 60° of flexion/extension, twisting or side bending\", 'QEC Calculator'!$D$24=\"Moderate: 6 - 10 kg (13 - 22 lbs.)\"), \"6\")","v":false},{"$f":"IF(AND('QEC Calculator'!$D$16=\"> 60° of flexion, twisting or side bending \", 'QEC Calculator'!$D$24=\"Moderate: 6 - 10 kg (13 - 22 lbs.)\"), \"8\")","v":false},null,null,null,null,"Total Back Exposure (Moving)",{"$f":"+Q6+Q10+Q16+Q28+Q34","v":0},null,{"$f":"+IF(Q28=0,\"\",IF(Q28>0,V4))","v":""},null,null,null,"H2",{"$f":"IF(AND('QEC Calculator'!$E$16=\"< 20° of flexion/extension, twisting, or side bending\", 'QEC Calculator'!$E$24=\"Moderate: 6 - 10 kg (13 - 22 lbs.)\"), \"4\")","v":false},{"$f":"IF(AND('QEC Calculator'!$E$16=\"20° - 60° of flexion/extension, twisting or side bending\", 'QEC Calculator'!$E$24=\"Moderate: 6 - 10 kg (13 - 22 lbs.)\"), \"6\")","v":false},{"$f":"IF(AND('QEC Calculator'!$E$16=\"> 60° of flexion, twisting or side bending \", 'QEC Calculator'!$E$24=\"Moderate: 6 - 10 kg (13 - 22 lbs.)\"), \"8\")","v":false},null,null,null,null,"Total Back Exposure (Moving)",{"$f":"+AF6+AF10+AF16+AF28+AF34","v":0},null,{"$f":"+IF(AF28=0,\"\",IF(AF28>0,AK4))","v":""},null,null,"H2",{"$f":"IF(AND('QEC Calculator'!$F$16=\"< 20° of flexion/extension, twisting, or side bending\", 'QEC Calculator'!$F$24=\"Moderate: 6 - 10 kg (13 - 22 lbs.)\"), \"4\")","v":false},{"$f":"IF(AND('QEC Calculator'!$F$16=\"20° - 60° of flexion/extension, twisting or side bending\", 'QEC Calculator'!$F$24=\"Moderate: 6 - 10 kg (13 - 22 lbs.)\"), \"6\")","v":false},{"$f":"IF(AND('QEC Calculator'!$F$16=\"> 60° of flexion, twisting or side bending \", 'QEC Calculator'!$F$24=\"Moderate: 6 - 10 kg (13 - 22 lbs.)\"), \"8\")","v":false},null,null,null,null,"Total Back Exposure (Moving)",{"$f":"+AT6+AT10+AT16+AT28+AT34","v":0},null,{"$f":"+IF(AT28=0,\"\",IF(AT28>0,AY4))","v":""}]
[null,null,null,null,null,null,null,null,null,null,null,null,"H3",{"$f":"IF(AND('QEC Calculator'!$D$16=\"< 20° of flexion/extension, twisting, or side bending\", 'QEC Calculator'!$D$24=\"Heavy: 11 - 20 kg (22 - 44 lbs.)\"), \"6\")","v":false},{"$f":"IF(AND('QEC Calculator'!$D$16=\"20° - 60° of flexion/extension, twisting or side bending\", 'QEC Calculator'!$D$24=\"Heavy: 11 - 20 kg (22 - 44 lbs.)\"), \"8\")","v":false},{"$f":"IF(AND('QEC Calculator'!$D$16=\"> 60° of flexion, twisting or side bending \", 'QEC Calculator'!$D$24=\"Heavy: 11 - 20 kg (22 - 44 lbs.)\"), \"10\")","v":false},null,null,null,null,"Total Shoulder/Arm Exposure",{"$f":"+Q67+Q61+Q54+Q47+Q41","v":0},{"$f":"IF(Q21=0, \"0\", IF(Q21>0 = \"V3\", \"\"))","v":"0"},null,null,null,null,"H3",{"$f":"IF(AND('QEC Calculator'!$E$16=\"< 20° of flexion/extension, twisting, or side bending\", 'QEC Calculator'!$E$24=\"Heavy: 11 - 20 kg (22 - 44 lbs.)\"), \"6\")","v":false},{"$f":"IF(AND('QEC Calculator'!$E$16=\"20° - 60° of flexion/extension, twisting or side bending\", 'QEC Calculator'!$E$24=\"Heavy: 11 - 20 kg (22 - 44 lbs.)\"), \"8\")","v":false},{"$f":"IF(AND('QEC Calculator'!$E$16=\"> 60° of flexion, twisting or side bending \", 'QEC Calculator'!$E$24=\"Heavy: 11 - 20 kg (22 - 44 lbs.)\"), \"10\")","v":false},null,null,null,null,"Total Shoulder/Arm Exposure",{"$f":"+AF67+AF61+AF54+AF47+AF41","v":0},{"$f":"IF(AF21=0, \"0\", IF(AF21>0 = \"V3\", \"\"))","v":"0"},null,null,null,"H3",{"$f":"IF(AND('QEC Calculator'!$F$16=\"< 20° of flexion/extension, twisting, or side bending\", 'QEC Calculator'!$F$24=\"Heavy: 11 - 20 kg (22 - 44 lbs.)\"), \"6\")","v":false},{"$f":"IF(AND('QEC Calculator'!$F$16=\"20° - 60° of flexion/extension, twisting or side bending\", 'QEC Calculator'!$F$24=\"Heavy: 11 - 20 kg (22 - 44 lbs.)\"), \"8\")","v":false},{"$f":"IF(AND('QEC Calculator'!$F$16=\"> 60° of flexion, twisting or side bending \", 'QEC Calculator'!$F$24=\"Heavy: 11 - 20 kg (22 - 44 lbs.)\"), \"10\")","v":false},null,null,null,null,"Total Shoulder/Arm Exposure",{"$f":"+AT67+AT61+AT54+AT47+AT41","v":0},{"$f":"IF(AT21=0, \"0\", IF(AT21>0 = \"V3\", \"\"))","v":"0"}]
["Select","If yes, is the movement of the back:","If no, does the back remain static for most of the time?",null,null,null,null,null,null,null,null,null,"H4",{"$f":"IF(AND('QEC Calculator'!$D$16=\"< 20° of flexion/extension, twisting, or side bending\", 'QEC Calculator'!$D$24=\"Very heavy: > 20 kg (44 lbs.)\"), \"8\")","v":false},{"$f":"IF(AND('QEC Calculator'!$D$16=\"20° - 60° of flexion/extension, twisting or side bending\", 'QEC Calculator'!$D$24=\"Very heavy: > 20 kg (44 lbs.)\"), \"10\")","v":false},{"$f":"IF(AND('QEC Calculator'!$D$16=\"> 60° of flexion, twisting or side bending \", 'QEC Calculator'!$D$24=\"Very heavy: > 20 kg (44 lbs.)\"), \"12\")","v":false},{"$f":"+P6+O6+N6+N5+O5+P5+P4+O4+N4+N3+O3+P3","v":0},null,null,null,"Total Wrist/Hand Exposure",{"$f":"+Q73+Q79+Q85+Q92+Q98","v":0},null,null,null,null,null,"H4",{"$f":"IF(AND('QEC Calculator'!$E$16=\"< 20° of flexion/extension, twisting, or side bending\", 'QEC Calculator'!$E$24=\"Very heavy: > 20 kg (44 lbs.)\"), \"8\")","v":false},{"$f":"IF(AND('QEC Calculator'!$E$16=\"20° - 60° of flexion/extension, twisting or side bending\", 'QEC Calculator'!$E$24=\"Very heavy: > 20 kg (44 lbs.)\"), \"10\")","v":false},{"$f":"IF(AND('QEC Calculator'!$E$16=\"> 60° of flexion, twisting or side bending \", 'QEC Calculator'!$E$24=\"Very heavy: > 20 kg (44 lbs.)\"), \"12\")","v":false},{"$f":"+AE6+AD6+AC6+AC5+AD5+AE5+AE4+AD4+AC4+AC3+AD3+AE3","v":0},null,null,null,"Total Wrist/Hand Exposure",{"$f":"+AF73+AF79+AF85+AF92+AF98","v":0},null,null,null,null,"H4",{"$f":"IF(AND('QEC Calculator'!$F$16=\"< 20° of flexion/extension, twisting, or side bending\", 'QEC Calculator'!$F$24=\"Very heavy: > 20 kg (44 lbs.)\"), \"8\")","v":false},{"$f":"IF(AND('QEC Calculator'!$F$16=\"20° - 60° of flexion/extension, twisting or side bending\", 'QEC Calculator'!$F$24=\"Very heavy: > 20 kg (44 lbs.)\"), \"10\")","v":false},{"$f":"IF(AND('QEC Calculator'!$F$16=\"> 60° of flexion, twisting or side bending \", 'QEC Calculator'!$F$24=\"Very heavy: > 20 kg (44 lbs.)\"), \"12\")","v":false},{"$f":"+AS6+AR6+AQ6+AQ5+AR5+AS5+AS4+AR4+AQ4+AQ3+AR3+AS3","v":0},null,null,null,"Total Wrist/Hand Exposure",{"$f":"+AT73+AT79+AT85+AT92+AT98","v":0}]
["Yes","Select","Select","Select",null,null,null,null,null,null,null,null,null,"A1","A2","A3",null,null,null,null,"Total Head/Neck Exposure",{"$f":"+Q104+Q110","v":0},null,null,null,null,null,null,"A1","A2","A3",null,null,null,null,"Total Head/Neck Exposure",{"$f":"+AF104+AF110","v":0},null,null,null,null,null,"A1","A2","A3",null,null,null,null,"Total Head/Neck Exposure",{"$f":"+AT104+AT110","v":0}]
["No","Infrequent  - 3 times/minute or less","Yes ","Yes",null,null,null,null,null,null,null,"Back Posture (A) & Duration (J)","J1",{"$f":"IF(AND('QEC Calculator'!$D$16=\"< 20° of flexion/extension, twisting, or side bending\", 'QEC Calculator'!$D$25=\"Less than 2 hours\"), \"2\")","v":false},{"$f":"IF(AND('QEC Calculator'!$D$16=\"20° - 60° of flexion/extension, twisting or side bending\", 'QEC Calculator'!$D$30=\"Less than 2 hours\"), \"4\")","v":false},{"$f":"IF(AND('QEC Calculator'!$D$16=\"> 60° of flexion, twisting or side bending \", 'QEC Calculator'!$D$25=\"Less than 2 hours\"), \"6\")","v":false},null,null,null,null,"Total Driving Exposure",{"$f":"+Q113","v":0},null,null,null,null,"Back Posture (A) & Duration (J)","J1",{"$f":"IF(AND('QEC Calculator'!$E$16=\"< 20° of flexion/extension, twisting, or side bending\", 'QEC Calculator'!$E$25=\"Less than 2 hours\"), \"2\")","v":false},{"$f":"IF(AND('QEC Calculator'!$E$16=\"20° - 60° of flexion/extension, twisting or side bending\", 'QEC Calculator'!$E$30=\"Less than 2 hours\"), \"4\")","v":false},{"$f":"IF(AND('QEC Calculator'!$E$16=\"> 60° of flexion, twisting or side bending \", 'QEC Calculator'!$E$25=\"Less than 2 hours\"), \"6\")","v":false},null,null,null,null,"Total Driving Exposure",{"$f":"+AF113","v":0},null,null,null,"Back Posture (A) & Duration (J)","J1",{"$f":"IF(AND('QEC Calculator'!$F$16=\"< 20° of flexion/extension, twisting, or side bending\", 'QEC Calculator'!$F$25=\"Less than 2 hours\"), \"2\")","v":false},{"$f":"IF(AND('QEC Calculator'!$F$16=\"20° - 60° of flexion/extension, twisting or side bending\", 'QEC Calculator'!$F$30=\"Less than 2 hours\"), \"4\")","v":false},{"$f":"IF(AND('QEC Calculator'!$F$16=\"> 60° of flexion, twisting or side bending \", 'QEC Calculator'!$F$25=\"Less than 2 hours\"), \"6\")","v":false},null,null,null,null,"Total Driving Exposure",{"$f":"+AT113","v":0}]
[null,"Frequent - around 8 times/minute","No","No",null,null,null,null,null,null,null,null,"J2",{"$f":"IF(AND('QEC Calculator'!$D$16=\"< 20° of flexion/extension, twisting, or side bending\", 'QEC Calculator'!$D$25=\"2 - 4 hours\"), \"4\")","v":false},{"$f":"IF(AND('QEC Calculator'!$D$16=\"20° - 60° of flexion/extension, twisting or side bending\", 'QEC Calculator'!$D$25=\"2 - 4 hours\"), \"6\")","v":false},{"$f":"IF(AND('QEC Calculator'!$D$16=\"> 60° of flexion, twisting or side bending \", 'QEC Calculator'!$D$25=\"2 - 4 hours\"), \"8\")","v":false},null,null,null,null,"Total Vibration Exposure",{"$f":"+Q116","v":0},null,null,null,null,null,"J2",{"$f":"IF(AND('QEC Calculator'!$E$16=\"< 20° of flexion/extension, twisting, or side bending\", 'QEC Calculator'!$E$25=\"2 - 4 hours\"), \"4\")","v":false},{"$f":"IF(AND('QEC Calculator'!$E$16=\"20° - 60° of flexion/extension, twisting or side bending\", 'QEC Calculator'!$E$25=\"2 - 4 hours\"), \"6\")","v":false},{"$f":"IF(AND('QEC Calculator'!$E$16=\"> 60° of flexion, twisting or side bending \", 'QEC Calculator'!$E$25=\"2 - 4 hours\"), \"8\")","v":false},null,null,null,null,"Total Vibration Exposure",{"$f":"+AF116","v":0},null,null,null,null,"J2",{"$f":"IF(AND('QEC Calculator'!$F$16=\"< 20° of flexion/extension, twisting, or side bending\", 'QEC Calculator'!$F$25=\"2 - 4 hours\"), \"4\")","v":false},{"$f":"IF(AND('QEC Calculator'!$F$16=\"20° - 60° of flexion/extension, twisting or side bending\", 'QEC Calculator'!$F$25=\"2 - 4 hours\"), \"6\")","v":false},{"$f":"IF(AND('QEC Calculator'!$F$16=\"> 60° of flexion, twisting or side bending \", 'QEC Calculator'!$F$25=\"2 - 4 hours\"), \"8\")","v":false},null,null,null,null,"Total Vibration Exposure",{"$f":"+AT116","v":0}]
[null,"Very frequent - 12 times/minute or more","",null,null,null,null,null,null,null,null,null,"J3",{"$f":"IF(AND('QEC Calculator'!$D$16=\"< 20° of flexion/extension, twisting, or side bending\", 'QEC Calculator'!$D$25=\"> 4 hours\"), \"6\")","v":false},{"$f":"IF(AND('QEC Calculator'!$D$16=\"20° - 60° of flexion/extension, twisting or side bending\", 'QEC Calculator'!$D$25=\"> 4 hours\"), \"8\")","v":false},{"$f":"IF(AND('QEC Calculator'!$D$16=\"> 60° of flexion, twisting or side bending \", 'QEC Calculator'!$D$25=\"> 4 hours\"), \"10\")","v":false},{"$f":"+P10+O10+N10+N9+O9+P9+P8+O8+N8","v":0},null,null,null,"Total Work Pace Exposure",{"$f":"+Q119","v":0},null,null,null,null,null,"J3",{"$f":"IF(AND('QEC Calculator'!$E$16=\"< 20° of flexion/extension, twisting, or side bending\", 'QEC Calculator'!$E$25=\"> 4 hours\"), \"6\")","v":false},{"$f":"IF(AND('QEC Calculator'!$E$16=\"20° - 60° of flexion/extension, twisting or side bending\", 'QEC Calculator'!$E$25=\"> 4 hours\"), \"8\")","v":false},{"$f":"IF(AND('QEC Calculator'!$E$16=\"> 60° of flexion, twisting or side bending \", 'QEC Calculator'!$E$25=\"> 4 hours\"), \"10\")","v":false},{"$f":"+AE10+AD10+AC10+AC9+AD9+AE9+AE8+AD8+AC8","v":0},null,null,null,"Total Work Pace Exposure",{"$f":"+AF119","v":0},null,null,null,null,"J3",{"$f":"IF(AND('QEC Calculator'!$F$16=\"< 20° of flexion/extension, twisting, or side bending\", 'QEC Calculator'!$F$25=\"> 4 hours\"), \"6\")","v":false},{"$f":"IF(AND('QEC Calculator'!$F$16=\"20° - 60° of flexion/extension, twisting or side bending\", 'QEC Calculator'!$F$25=\"> 4 hours\"), \"8\")","v":false},{"$f":"IF(AND('QEC Calculator'!$F$16=\"> 60° of flexion, twisting or side bending \", 'QEC Calculator'!$F$25=\"> 4 hours\"), \"10\")","v":false},{"$f":"+AS10+AR10+AQ10+AQ9+AR9+AS9+AS8+AR8+AQ8","v":0},null,null,null,"Total Work Pace Exposure",{"$f":"+AT119","v":0}]
[null,null,null,null,null,null,null,null,null,null,null,null,null,null,null,null,null,null,null,null,"Total Stress Exposure",{"$f":"+Q122","v":0},null,null,null,null,null,null,null,null,null,null,null,null,null,"Total Stress Exposure",{"$f":"+AF122","v":0},null,null,null,null,null,null,null,null,null,null,null,null,"Total Stress Exposure",{"$f":"+AT122","v":0}]
["shoulder 1",null,null,"shoulder 2",null,null,null,null,null,null,null,null,null,"J1","j2","j3",null,null,null,null,null,null,null,null,null,null,null,null,"J1","j2","j3",null,null,null,null,null,null,null,null,null,null,null,"J1","j2","j3"]
["Select",null,null,"Select",null,null,null,null,null,null,null,null,"Duration (J) & Weight (H)",{"$f":"IF(AND('QEC Calculator'!$D$25=\"Less than 2 hours\", 'QEC Calculator'!$D$24=\"Light: 5 kg (11 lbs.) or less\"),\"2\")","v":false},{"$f":"IF(AND('QEC Calculator'!$D$25=\"2 - 4 hours\", 'QEC Calculator'!$D$24=\"Light: 5 kg (11 lbs.) or less\"),\"4\")","v":false},{"$f":"IF(AND('QEC Calculator'!$D$25=\"> 4 hours\", 'QEC Calculator'!$D$24=\"Light: 5 kg (11 lbs.) or less\"),\"6\")","v":false},null,null,null,null,null,null,null,null,null,null,null,"Duration (J) & Weight (H)",{"$f":"IF(AND('QEC Calculator'!$E$25=\"Less than 2 hours\", 'QEC Calculator'!$E$24=\"Light: 5 kg (11 lbs.) or less\"),\"2\")","v":false},{"$f":"IF(AND('QEC Calculator'!$E$25=\"2 - 4 hours\", 'QEC Calculator'!$E$24=\"Light: 5 kg (11 lbs.) or less\"),\"4\")","v":false},{"$f":"IF(AND('QEC Calculator'!$E$25=\"> 4 hours\", 'QEC Calculator'!$E$24=\"Light: 5 kg (11 lbs.) or less\"),\"6\")","v":false},null,null,null,null,null,null,null,null,null,null,"Duration (J) & Weight (H)",{"$f":"IF(AND('QEC Calculator'!$F$25=\"Less than 2 hours\", 'QEC Calculator'!$F$24=\"Light: 5 kg (11 lbs.) or less\"),\"2\")","v":false},{"$f":"IF(AND('QEC Calculator'!$F$25=\"2 - 4 hours\", 'QEC Calculator'!$F$24=\"Light: 5 kg (11 lbs.) or less\"),\"4\")","v":false},{"$f":"IF(AND('QEC Calculator'!$F$25=\"> 4 hours\", 'QEC Calculator'!$F$24=\"Light: 5 kg (11 lbs.) or less\"),\"6\")","v":false}]
["at or below waist height",null,null,"Infrequent - some intermittent movement.",null,null,null,null,null,null,null,null,"h2",{"$f":"IF(AND('QEC Calculator'!$D$25=\"Less than 2 hours\", 'QEC Calculator'!$D$24=\"Moderate: 6 - 10 kg (13 - 22 lbs.)\"), \"4\")","v":false},{"$f":"IF(AND('QEC Calculator'!$D$25=\"2 - 4 hours\", 'QEC Calculator'!$D$24=\"Moderate: 6 - 10 kg (13 - 22 lbs.)\"), \"6\")","v":false},{"$f":"IF(AND('QEC Calculator'!$D$25=\"> 4 hours\", 'QEC Calculator'!$D$24=\"Moderate: 6 - 10 kg (13 - 22 lbs.)\"), \"8\")","v":false},null,null,null,null,null,null,null,null,null,null,null,"h2",{"$f":"IF(AND('QEC Calculator'!$E$25=\"Less than 2 hours\", 'QEC Calculator'!$E$24=\"Moderate: 6 - 10 kg (13 - 22 lbs.)\"), \"4\")","v":false},{"$f":"IF(AND('QEC Calculator'!$E$25=\"2 - 4 hours\", 'QEC Calculator'!$E$24=\"Moderate: 6 - 10 kg (13 - 22 lbs.)\"), \"6\")","v":false},{"$f":"IF(AND('QEC Calculator'!$E$25=\"> 4 hours\", 'QEC Calculator'!$E$24=\"Moderate: 6 - 10 kg (13 - 22 lbs.)\"), \"8\")","v":false},null,null,null,null,null,null,null,null,null,null,"h2",{"$f":"IF(AND('QEC Calculator'!$F$25=\"Less than 2 hours\", 'QEC Calculator'!$F$24=\"Moderate: 6 - 10 kg (13 - 22 lbs.)\"), \"4\")","v":false},{"$f":"IF(AND('QEC Calculator'!$F$25=\"2 - 4 hours\", 'QEC Calculator'!$F$24=\"Moderate: 6 - 10 kg (13 - 22 lbs.)\"), \"6\")","v":false},{"$f":"IF(AND('QEC Calculator'!$F$25=\"> 4 hours\", 'QEC Calculator'!$F$24=\"Moderate: 6 - 10 kg (13 - 22 lbs.)\"), \"8\")","v":false}]
["at about chest height",null,null,"Frequent - regular movement with some pauses",null,null,null,null,null,null,null,null,"h3",{"$f":"IF(AND('QEC Calculator'!$D$25=\"Less than 2 hours\", 'QEC Calculator'!$D$24=\"Heavy: 11 - 20 kg (22 - 44 lbs.)\"), \"6\")","v":false},{"$f":"IF(AND('QEC Calculator'!$D$25=\"2 - 4 hours\", 'QEC Calculator'!$D$24=\"Heavy: 11 - 20 kg (22 - 44 lbs.)\"), \"8\")","v":false},{"$f":"IF(AND('QEC Calculator'!$D$25=\"> 4 hours\", 'QEC Calculator'!$D$24=\"Heavy: 11 - 20 kg (22 - 44 lbs.)\"), \"8\")","v":false},null,null,null,"IF C22",{"$f":"IF('QEC Calculator'!D17=YES,V14=\"□\")","v":{"$error":"#NAME?"}},null,null,null,null,null,null,"h3",{"$f":"IF(AND('QEC Calculator'!$E$25=\"Less than 2 hours\", 'QEC Calculator'!$E$24=\"Heavy: 11 - 20 kg (22 - 44 lbs.)\"), \"6\")","v":false},{"$f":"IF(AND('QEC Calculator'!$E$25=\"2 - 4 hours\", 'QEC Calculator'!$E$24=\"Heavy: 11 - 20 kg (22 - 44 lbs.)\"), \"8\")","v":false},{"$f":"IF(AND('QEC Calculator'!$E$25=\"> 4 hours\", 'QEC Calculator'!$E$24=\"Heavy: 11 - 20 kg (22 - 44 lbs.)\"),  \"10\")","v":false},null,null,null,null,null,null,null,null,null,null,"h3",{"$f":"IF(AND('QEC Calculator'!$F$25=\"Less than 2 hours\", 'QEC Calculator'!$F$24=\"Heavy: 11 - 20 kg (22 - 44 lbs.)\"), \"6\")","v":false},{"$f":"IF(AND('QEC Calculator'!$F$25=\"2 - 4 hours\", 'QEC Calculator'!$F$24=\"Heavy: 11 - 20 kg (22 - 44 lbs.)\"), \"8\")","v":false},{"$f":"IF(AND('QEC Calculator'!$F$25=\"> 4 hours\", 'QEC Calculator'!$F$24=\"Heavy: 11 - 20 kg (22 - 44 lbs.)\"), \"10\")","v":false}]
["at or above shoulder height",null,null,"Very frequent almost continuous movement.",null,null,null,null,null,null,null,null,"h4",{"$f":"IF(AND('QEC Calculator'!$D$25=\"Less than 2 hours\", 'QEC Calculator'!$D$24=\"Very heavy: > 20 kg (44 lbs.)\"), \"8\")","v":false},{"$f":"IF(AND('QEC Calculator'!$D$25=\"2 - 4 hours\", 'QEC Calculator'!$D$24=\"Very heavy: > 20 kg (44 lbs.)\"), \"10\")","v":false},{"$f":"IF(AND('QEC Calculator'!$D$25=\"> 4 hours\", 'QEC Calculator'!$D$24=\"Very heavy: > 20 kg (44 lbs.)\"), \"12\")","v":false},{"$f":"+P13+P14+P15+P16+O16+O15+O14+O13+N13+N14+N15+N16","v":0},null,null,null,null,null,null,null,null,null,null,"h4",{"$f":"IF(AND('QEC Calculator'!$E$25=\"Less than 2 hours\", 'QEC Calculator'!$E$24=\"Very heavy: > 20 kg (44 lbs.)\"), \"8\")","v":false},{"$f":"IF(AND('QEC Calculator'!$E$25=\"2 - 4 hours\", 'QEC Calculator'!$E$24=\"Very heavy: > 20 kg (44 lbs.)\"), \"10\")","v":false},{"$f":"IF(AND('QEC Calculator'!$E$25=\"> 4 hours\", 'QEC Calculator'!$E$24=\"Very heavy: > 20 kg (44 lbs.)\"), \"12\")","v":false},{"$f":"+AE13+AE14+AE15+AE16+AD16+AD15+AD14+AD13+AC13+AC14+AC15+AC16","v":0},null,null,null,null,null,null,null,null,null,"h4",{"$f":"IF(AND('QEC Calculator'!$F$25=\"Less than 2 hours\", 'QEC Calculator'!$F$24=\"Very heavy: > 20 kg (44 lbs.)\"), \"8\")","v":false},{"$f":"IF(AND('QEC Calculator'!$F$25=\"2 - 4 hours\", 'QEC Calculator'!$F$24=\"Very heavy: > 20 kg (44 lbs.)\"), \"10\")","v":false},{"$f":"IF(AND('QEC Calculator'!$F$25=\"> 4 hours\", 'QEC Calculator'!$F$24=\"Very heavy: > 20 kg (44 lbs.)\"), \"12\")","v":false},{"$f":"+AS13+AS14+AS15+AS16+AR16+AR15+AR14+AR13+AQ13+AQ14+AQ15+AQ16","v":0}]
[null,null,null,null,null,null,null,null,null,null,null,null,null,null,null,null,null,null,null,null,"=IF(G31>=30;G14+G17;\"\")"]
["wrist1",null,"wrist2",null,null,null,null,null,null,null,null,null,"Static Posture (B) & Duration (J)","B1","B2",null,null,null,null,null,{"$f":"IF(R9=\"Closed\",\"\",IFERROR(H9*K9*100,\"\"))","v":0},null,null,null,null,null,null,"Static Posture (B) & Duration (J)","B1","B2",null,null,null,null,null,null,null,null,null,null,null,"Static Posture (B) & Duration (J)","B1","B2"]
["Select",null,"Select",null,null,null,null,null,null,null,null,null,"J1",{"$f":"IF(AND('QEC Calculator'!$D$18=\"No\", 'QEC Calculator'!$D$25=\"Less than 2 hours\"), \"2\")","v":false},{"$f":"IF(AND('QEC Calculator'!$D$18=\"Yes\", 'QEC Calculator'!$D$25=\"Less than 2 hours\"), \"4\")","v":false},null,null,null,null,null,{"$f":"IF('QEC Calculator'!D17=\"yes\",\" \",V18)","v":0},null,null,null,null,null,null,"J1",{"$f":"IF(AND('QEC Calculator'!$E$18=\"No\", 'QEC Calculator'!$E$25=\"Less than 2 hours\"), \"2\")","v":false},{"$f":"IF(AND('QEC Calculator'!$E$18=\"Yes\", 'QEC Calculator'!$E$25=\"Less than 2 hours\"), \"4\")","v":false},null,null,null,null,null,null,null,null,null,null,null,"J1",{"$f":"IF(AND('QEC Calculator'!$F$18=\"No\", 'QEC Calculator'!$F$25=\"Less than 2 hours\"), \"2\")","v":false},{"$f":"IF(AND('QEC Calculator'!$F$18=\"Yes\", 'QEC Calculator'!$F$25=\"Less than 2 hours\"), \"4\")","v":false}]
["almost a straight wrist",null,"10 times/minute or less",null,null,null,null,null,null,null,null,null,"J2",{"$f":"IF(AND('QEC Calculator'!$D$18=\"No\",  'QEC Calculator'!$D$25=\"2 - 4 hours\"), \"4\")","v":false},{"$f":"IF(AND('QEC Calculator'!$D$18=\"Yes\",  'QEC Calculator'!$D$25=\"2 - 4 hours\"), \"6\")","v":false},null,null,null,null,null,null,null,null,null,null,null,null,"J2",{"$f":"IF(AND('QEC Calculator'!$E$18=\"No\",  'QEC Calculator'!$E$25=\"2 - 4 hours\"), \"4\")","v":false},{"$f":"IF(AND('QEC Calculator'!$E$18=\"Yes\",  'QEC Calculator'!$E$25=\"2 - 4 hours\"), \"6\")","v":false},null,null,null,null,null,null,null,null,null,null,null,"J2",{"$f":"IF(AND('QEC Calculator'!$F$18=\"No\",  'QEC Calculator'!$F$25=\"2 - 4 hours\"), \"4\")","v":false},{"$f":"IF(AND('QEC Calculator'!$F$18=\"Yes\",  'QEC Calculator'!$F$25=\"2 - 4 hours\"), \"6\")","v":false}]
["a deviated or bent wrist",null,"11-20 times/minute",null,null,null,null,null,null,null,null,null,"J3",{"$f":"IF(AND('QEC Calculator'!$D$18=\"No\",  'QEC Calculator'!$D$25=\"> 4 hours\"), \"6\")","v":false},{"$f":"IF(AND('QEC Calculator'!$D$18=\"Yes\",  'QEC Calculator'!$D$25=\"> 4 hours\"), \"8\")","v":false},null,{"$f":"+P21+O21+N21+N20+O20+P20+P19+O19+N19","v":0},null,null,null,null,null,null,null,null,null,null,"J3",{"$f":"IF(AND('QEC Calculator'!$E$18=\"No\",  'QEC Calculator'!$E$25=\"> 4 hours\"), \"6\")","v":false},{"$f":"IF(AND('QEC Calculator'!$E$18=\"Yes\",  'QEC Calculator'!$E$25=\"> 4 hours\"), \"\")","v":false},null,{"$f":"+AE21+AD21+AC21+AC20+AD20+AE20+AE19+AD19+AC19","v":0},null,null,null,null,null,null,null,null,null,"J3",{"$f":"IF(AND('QEC Calculator'!$F$18=\"No\",  'QEC Calculator'!$F$25=\"> 4 hours\"), \"6\")","v":false},{"$f":"IF(AND('QEC Calculator'!$F$18=\"Yes\",  'QEC Calculator'!$F$25=\"> 4 hours\"), \"\")","v":false},null,{"$f":"+AS21+AR21+AQ21+AQ20+AR20+AS20+AS19+AR19+AQ19","v":0}]
[null,null,"> 20 times/minute"]
[null,null,null,null,null,null,null,null,null,null,null,null,"Frequency (B) & Weight (H)",null,null,null,null,null,null,null,null,null,null,null,null,null,null,"Frequency (B) & Weight (H)",null,null,null,null,null,null,null,null,null,null,null,null,null,"Frequency (B) & Weight (H)"]
["neck1",null,"Maximum weight handled",null,null,null,null,null,null,null,null,null,null,"B3","B4","B5",null,null,null,null,null,null,null,null,null,null,null,null,"B3","B4","B5",null,null,null,null,null,null,null,null,null,null,null,"B3","B4","B5"]
["Select",null,"Select",null,null,null,null,null,null,null,null,null,"H1",{"$f":"IF(AND('QEC Calculator'!$D$18=\"Infrequent  - 3 times/minute or less\", 'QEC Calculator'!$D$24=\"Light: 5 kg (11 lbs.) or less\"), \"2\")","v":false},{"$f":"IF(AND('QEC Calculator'!$D$18=\"Frequent - around 8 times/minute\",  'QEC Calculator'!$D$24=\"Light: 5 kg (11 lbs.) or less\"), \"4\")","v":false},{"$f":"IF(AND('QEC Calculator'!$D$18=\"Very frequent - 12 times/minute or more\", 'QEC Calculator'!$D$24=\"Light: 5 kg (11 lbs.) or less\"), \"6\")","v":false},null,null,null,null,null,null,null,null,null,null,null,"H1",{"$f":"IF(AND('QEC Calculator'!$E$18=\"Infrequent  - 3 times/minute or less\", 'QEC Calculator'!$E$24=\"Light: 5 kg (11 lbs.) or less\"), \"2\")","v":false},{"$f":"IF(AND('QEC Calculator'!$E$18=\"Frequent - around 8 times/minute\",  'QEC Calculator'!$E$24=\"Light: 5 kg (11 lbs.) or less\"), \"4\")","v":false},{"$f":"IF(AND('QEC Calculator'!$E$18=\"Very frequent - 12 times/minute or more\", 'QEC Calculator'!$E$24=\"Light: 5 kg (11 lbs.) or less\"), \"6\")","v":false},null,null,null,null,null,null,null,null,null,null,"H1",{"$f":"IF(AND('QEC Calculator'!$F$18=\"Infrequent  - 3 times/minute or less\", 'QEC Calculator'!$F$24=\"Light: 5 kg (11 lbs.) or less\"), \"2\")","v":false},{"$f":"IF(AND('QEC Calculator'!$F$18=\"Frequent - around 8 times/minute\",  'QEC Calculator'!$F$24=\"Light: 5 kg (11 lbs.) or less\"), \"4\")","v":false},{"$f":"IF(AND('QEC Calculator'!$F$18=\"Very frequent - 12 times/minute or more\", 'QEC Calculator'!$F$24=\"Light: 5 kg (11 lbs.) or less\"), \"6\")","v":false}]
["No",null,"Light: 5 kg (11 lbs.) or less",null,null,null,null,null,null,null,null,null,"H2",{"$f":"IF(AND('QEC Calculator'!$D$18=\"Infrequent  - 3 times/minute or less\", 'QEC Calculator'!$D$24=\"Moderate: 6 - 10 kg (13 - 22 lbs.)\"), \"4\")","v":false},{"$f":"IF(AND('QEC Calculator'!$D$18=\"Frequent - around 8 times/minute\",  'QEC Calculator'!$D$24=\"Moderate: 6 - 10 kg (13 - 22 lbs.)\"), \"6\")","v":false},{"$f":"IF(AND('QEC Calculator'!$D$18=\"Very frequent - 12 times/minute or more\", 'QEC Calculator'!$D$24=\"Moderate: 6 - 10 kg (13 - 22 lbs.)\"), \"8\")","v":false},null,null,null,null,null,null,null,null,null,null,null,"H2",{"$f":"IF(AND('QEC Calculator'!$E$18=\"Infrequent  - 3 times/minute or less\", 'QEC Calculator'!$E$24=\"Moderate: 6 - 10 kg (13 - 22 lbs.)\"), \"4\")","v":false},{"$f":"IF(AND('QEC Calculator'!$E$18=\"Frequent - around 8 times/minute\",  'QEC Calculator'!$E$24=\"Moderate: 6 - 10 kg (13 - 22 lbs.)\"), \"6\")","v":false},{"$f":"IF(AND('QEC Calculator'!$E$18=\"Very frequent - 12 times/minute or more\", 'QEC Calculator'!$E$24=\"Moderate: 6 - 10 kg (13 - 22 lbs.)\"), \"8\")","v":false},null,null,null,null,null,null,null,null,null,null,"H2",{"$f":"IF(AND('QEC Calculator'!$F$18=\"Infrequent  - 3 times/minute or less\", 'QEC Calculator'!$F$24=\"Moderate: 6 - 10 kg (13 - 22 lbs.)\"), \"4\")","v":false},{"$f":"IF(AND('QEC Calculator'!$F$18=\"Frequent - around 8 times/minute\",  'QEC Calculator'!$F$24=\"Moderate: 6 - 10 kg (13 - 22 lbs.)\"), \"6\")","v":false},{"$f":"IF(AND('QEC Calculator'!$F$18=\"Very frequent - 12 times/minute or more\", 'QEC Calculator'!$F$24=\"Moderate: 6 - 10 kg (13 - 22 lbs.)\"), \"8\")","v":false}]
["Yes, occasionally",null,"Moderate: 6 - 10 kg (13 - 22 lbs.)",null,null,null,null,null,null,null,null,null,"H3",{"$f":"IF(AND('QEC Calculator'!$D$18=\"Infrequent  - 3 times/minute or less\", 'QEC Calculator'!$D$24=\"Heavy: 11 - 20 kg (22 - 44 lbs.)\"), \"6\")","v":false},{"$f":"IF(AND('QEC Calculator'!$D$18=\"Frequent - around 8 times/minute\",  'QEC Calculator'!$D$24=\"Heavy: 11 - 20 kg (22 - 44 lbs.)\"), \"8\")","v":false},{"$f":"IF(AND('QEC Calculator'!$D$18=\"Very frequent - 12 times/minute or more\", 'QEC Calculator'!$D$24=\"Heavy: 11 - 20 kg (22 - 44 lbs.)\"), \"10\")","v":false},null,null,null,null,null,null,null,null,null,null,null,"H3",{"$f":"IF(AND('QEC Calculator'!$E$18=\"Infrequent  - 3 times/minute or less\", 'QEC Calculator'!$E$24=\"Heavy: 11 - 20 kg (22 - 44 lbs.)\"), \"6\")","v":false},{"$f":"IF(AND('QEC Calculator'!$E$18=\"Frequent - around 8 times/minute\",  'QEC Calculator'!$E$24=\"Heavy: 11 - 20 kg (22 - 44 lbs.)\"), \"8\")","v":false},{"$f":"IF(AND('QEC Calculator'!$E$18=\"Very frequent - 12 times/minute or more\", 'QEC Calculator'!$E$24=\"Heavy: 11 - 20 kg (22 - 44 lbs.)\"), \"10\")","v":false},null,null,null,null,null,null,null,null,null,null,"H3",{"$f":"IF(AND('QEC Calculator'!$F$18=\"Infrequent  - 3 times/minute or less\", 'QEC Calculator'!$F$24=\"Heavy: 11 - 20 kg (22 - 44 lbs.)\"), \"6\")","v":false},{"$f":"IF(AND('QEC Calculator'!$F$18=\"Frequent - around 8 times/minute\",  'QEC Calculator'!$F$24=\"Heavy: 11 - 20 kg (22 - 44 lbs.)\"), \"8\")","v":false},{"$f":"IF(AND('QEC Calculator'!$F$18=\"Very frequent - 12 times/minute or more\", 'QEC Calculator'!$F$24=\"Heavy: 11 - 20 kg (22 - 44 lbs.)\"), \"10\")","v":false}]
["Yes, continuously",null,"Heavy: 11 - 20 kg (22 - 44 lbs.)",null,null,null,null,null,null,null,null,null,"H4",{"$f":"IF(AND('QEC Calculator'!$D$18=\"Infrequent  - 3 times/minute or less\", 'QEC Calculator'!$D$24=\"Very heavy: > 20 kg (44 lbs.)\"), \"8\")","v":false},{"$f":"IF(AND('QEC Calculator'!$D$18=\"Frequent - around 8 times/minute\",  'QEC Calculator'!$D$24=\"Very heavy: > 20 kg (44 lbs.)\"), \"10\")","v":false},{"$f":"IF(AND('QEC Calculator'!$D$18=\"Very frequent - 12 times/minute or more\", 'QEC Calculator'!$D$24=\"Very heavy: > 20 kg (44 lbs.)\"), \"12\")","v":false},{"$f":"+P28+O28+N28+N27+O27+P27+P26+O26+N26+N25+O25+P25","v":0},null,null,null,null,null,null,null,null,null,null,"H4",{"$f":"IF(AND('QEC Calculator'!$E$18=\"Infrequent  - 3 times/minute or less\", 'QEC Calculator'!$E$24=\"Very heavy: > 20 kg (44 lbs.)\"), \"8\")","v":false},{"$f":"IF(AND('QEC Calculator'!$E$18=\"Frequent - around 8 times/minute\",  'QEC Calculator'!$E$24=\"Very heavy: > 20 kg (44 lbs.)\"), \"10\")","v":false},{"$f":"IF(AND('QEC Calculator'!$E$18=\"Very frequent - 12 times/minute or more\", 'QEC Calculator'!$E$24=\"Very heavy: > 20 kg (44 lbs.)\"), \"12\")","v":false},{"$f":"+AE28+AD28+AC28+AC27+AD27+AE27+AE26+AD26+AC26+AC25+AD25+AE25","v":0},null,null,null,null,null,null,null,null,null,"H4",{"$f":"IF(AND('QEC Calculator'!$F$18=\"Infrequent  - 3 times/minute or less\", 'QEC Calculator'!$F$24=\"Very heavy: > 20 kg (44 lbs.)\"), \"8\")","v":false},{"$f":"IF(AND('QEC Calculator'!$F$18=\"Frequent - around 8 times/minute\",  'QEC Calculator'!$F$24=\"Very heavy: > 20 kg (44 lbs.)\"), \"10\")","v":false},{"$f":"IF(AND('QEC Calculator'!$F$18=\"Very frequent - 12 times/minute or more\", 'QEC Calculator'!$F$24=\"Very heavy: > 20 kg (44 lbs.)\"), \"12\")","v":false},{"$f":"+AS28+AR28+AQ28+AQ27+AR27+AS27+AS26+AR26+AQ26+AQ25+AR25+AS25","v":0}]
[null,null,"Very heavy: > 20 kg (44 lbs.)"]
[null,null,null,null,null,null,null,null,null,null,null,null,"Frequency (B) & Duration (J)",null,null,null,null,null,null,null,null,null,null,null,null,null,null,"Frequency (B) & Duration (J)",null,null,null,null,null,null,null,null,null,null,null,null,null,"Frequency (B) & Duration (J)"]
["time1",null,"maxforce1",null,null,null,null,null,null,null,null,null,null,"B3","B4","B5",null,null,null,null,null,null,null,null,null,null,null,null,"B3","B4","B5",null,null,null,null,null,null,null,null,null,null,null,"B3","B4","B5"]
["Select",null,"Select",null,null,null,null,null,null,null,null,null,"J1",{"$f":"IF(AND('QEC Calculator'!$D$18=\"Infrequent  - 3 times/minute or less\", 'QEC Calculator'!$D$25=\"Less than 2 hours\"), \"2\")","v":false},{"$f":"IF(AND('QEC Calculator'!$D$18=\"Frequent - around 8 times/minute\",  'QEC Calculator'!$D$25=\"Less than 2 hours\"), \"4\")","v":false},{"$f":"IF(AND('QEC Calculator'!$D$18=\"Very frequent - 12 times/minute or more\", 'QEC Calculator'!$D$25=\"Less than 2 hours\"), \"6\")","v":false},null,null,null,null,null,null,null,null,null,null,null,"J1",{"$f":"IF(AND('QEC Calculator'!$E$18=\"Infrequent  - 3 times/minute or less\", 'QEC Calculator'!$E$25=\"Less than 2 hours\"), \"2\")","v":false},{"$f":"IF(AND('QEC Calculator'!$E$18=\"Frequent - around 8 times/minute\",  'QEC Calculator'!$E$25=\"Less than 2 hours\"), \"4\")","v":false},{"$f":"IF(AND('QEC Calculator'!$E$18=\"Very frequent - 12 times/minute or more\", 'QEC Calculator'!$E$25=\"Less than 2 hours\"), \"6\")","v":false},null,null,null,null,null,null,null,null,null,null,"J1",{"$f":"IF(AND('QEC Calculator'!$F$18=\"Infrequent  - 3 times/minute or less\", 'QEC Calculator'!$F$25=\"Less than 2 hours\"), \"2\")","v":false},{"$f":"IF(AND('QEC Calculator'!$F$18=\"Frequent - around 8 times/minute\",  'QEC Calculator'!$F$25=\"Less than 2 hours\"), \"4\")","v":false},{"$f":"IF(AND('QEC Calculator'!$F$18=\"Very frequent - 12 times/minute or more\", 'QEC Calculator'!$F$25=\"Less than 2 hours\"), \"6\")","v":false}]
["Less than 2 hours",null,"Low: less than 1 kg (2.2 lbs.)",null,null,null,null,null,null,null,null,null,"J2",{"$f":"IF(AND('QEC Calculator'!$D$18=\"Infrequent  - 3 times/minute or less\",  'QEC Calculator'!$D$25=\"2 - 4 hours\"), \"4\")","v":false},{"$f":"IF(AND('QEC Calculator'!$D$18=\"Frequent - around 8 times/minute\",  'QEC Calculator'!$D$25=\"2 - 4 hours\"), \"6\")","v":false},{"$f":"IF(AND('QEC Calculator'!$D$18=\"Very frequent - 12 times/minute or more\", 'QEC Calculator'!$D$25=\"2 - 4 hours\"), \"8\")","v":false},null,null,null,null,null,null,null,null,null,null,null,"J2",{"$f":"IF(AND('QEC Calculator'!$E$18=\"Infrequent  - 3 times/minute or less\",  'QEC Calculator'!$E$25=\"2 - 4 hours\"), \"4\")","v":false},{"$f":"IF(AND('QEC Calculator'!$E$18=\"Frequent - around 8 times/minute\",  'QEC Calculator'!$E$25=\"2 - 4 hours\"), \"6\")","v":false},{"$f":"IF(AND('QEC Calculator'!$E$18=\"Very frequent - 12 times/minute or more\", 'QEC Calculator'!$E$25=\"2 - 4 hours\"), \"8\")","v":false},null,null,null,null,null,null,null,null,null,null,"J2",{"$f":"IF(AND('QEC Calculator'!$F$18=\"Infrequent  - 3 times/minute or less\",  'QEC Calculator'!$F$25=\"2 - 4 hours\"), \"4\")","v":false},{"$f":"IF(AND('QEC Calculator'!$F$18=\"Frequent - around 8 times/minute\",  'QEC Calculator'!$F$25=\"2 - 4 hours\"), \"6\")","v":false},{"$f":"IF(AND('QEC Calculator'!$F$18=\"Very frequent - 12 times/minute or more\", 'QEC Calculator'!$F$25=\"2 - 4 hours\"), \"8\")","v":false}]
["2 - 4 hours",null,"Medium: 1 - 4 kg (2.2 - 8.8 lbs.)",null,null,null,null,null,null,null,null,null,"J3",{"$f":"IF(AND('QEC Calculator'!$D$18=\"Infrequent  - 3 times/minute or less\",  'QEC Calculator'!$D$25=\"> 4 hours\"), \"6\")","v":false},{"$f":"IF(AND('QEC Calculator'!$D$18=\"Frequent - around 8 times/minute\",  'QEC Calculator'!$D$25=\"> 4 hours\"), \"8\")","v":false},{"$f":"IF(AND('QEC Calculator'!$D$18=\"Very frequent - 12 times/minute or more\", 'QEC Calculator'!$D$25=\"> 4 hours\"), \"10\")","v":false},{"$f":"+P34+O34+N34+N33+O33+P33+P32+O32+N32","v":0},null,null,null,null,null,null,null,null,null,null,"J3",{"$f":"IF(AND('QEC Calculator'!$E$18=\"Infrequent  - 3 times/minute or less\",  'QEC Calculator'!$E$25=\"> 4 hours\"), \"6\")","v":false},{"$f":"IF(AND('QEC Calculator'!$E$18=\"Frequent - around 8 times/minute\",  'QEC Calculator'!$E$25=\"> 4 hours\"), \"8\")","v":false},{"$f":"IF(AND('QEC Calculator'!$E$18=\"Very frequent - 12 times/minute or more\", 'QEC Calculator'!$E$25=\"> 4 hours\"), \"10\")","v":false},{"$f":"+AE34+AD34+AC34+AC33+AD33+AE33+AE32+AD32+AC32","v":0},null,null,null,null,null,null,null,null,null,"J3",{"$f":"IF(AND('QEC Calculator'!$F$18=\"Infrequent  - 3 times/minute or less\",  'QEC Calculator'!$F$25=\"> 4 hours\"), \"6\")","v":false},{"$f":"IF(AND('QEC Calculator'!$F$18=\"Frequent - around 8 times/minute\",  'QEC Calculator'!$F$25=\"> 4 hours\"), \"8\")","v":false},{"$f":"IF(AND('QEC Calculator'!$F$18=\"Very frequent - 12 times/minute or more\", 'QEC Calculator'!$F$25=\"> 4 hours\"), \"10\")","v":false},{"$f":"+AS34+AR34+AQ34+AQ33+AR33+AS33+AS32+AR32+AQ32","v":0}]
["> 4 hours",null,"High: > 4 kg (8 lbs.)"]
[null,null,null,null,null,null,null,null,null,null,null,"Shoulder Arm","Height (C) & Weight (H)",null,null,null,null,null,null,null,null,null,null,null,null,null,"Shoulder Arm","Height (C) & Weight (H)",null,null,null,null,null,null,null,null,null,null,null,null,"Shoulder Arm","Height (C) & Weight (H)"]
["vibration",null,"driving",null,null,null,null,null,null,null,null,null,null,"C1","C2","C3",null,null,null,null,null,null,null,null,null,null,null,null,"C1","C2","C3",null,null,null,null,null,null,null,null,null,null,null,"C1","C2","C3"]
["Select",null,"Select",null,null,null,null,null,null,null,null,null,"H1",{"$f":"IF(AND('QEC Calculator'!$D$19=\"at or below waist height\", 'QEC Calculator'!$D$24=\"Light: 5 kg (11 lbs.) or less\"), \"2\")","v":false},{"$f":"IF(AND('QEC Calculator'!$D$19=\"at about chest height\", 'QEC Calculator'!$D$24=\"Light: 5 kg (11 lbs.) or less\"),\"4\")","v":false},{"$f":"IF(AND('QEC Calculator'!$D$19=\"at or above shoulder height\", 'QEC Calculator'!$D$24=\"Light: 5 kg (11 lbs.) or less\"),\"6\")","v":false},null,null,null,null,null,null,null,null,null,null,null,"H1",{"$f":"IF(AND('QEC Calculator'!$E$19=\"at or below waist height\", 'QEC Calculator'!$E$24=\"Light: 5 kg (11 lbs.) or less\"), \"2\")","v":false},{"$f":"IF(AND('QEC Calculator'!$E$19=\"at about chest height\", 'QEC Calculator'!$E$24=\"Light: 5 kg (11 lbs.) or less\"),\"4\")","v":false},{"$f":"IF(AND('QEC Calculator'!$E$19=\"at or above shoulder height\", 'QEC Calculator'!$E$24=\"Light: 5 kg (11 lbs.) or less\"),\"6\")","v":false},null,null,null,null,null,null,null,null,null,null,"H1",{"$f":"IF(AND('QEC Calculator'!$F$19=\"at or below waist height\", 'QEC Calculator'!$F$24=\"Light: 5 kg (11 lbs.) or less\"), \"2\")","v":false},{"$f":"IF(AND('QEC Calculator'!$F$19=\"at about chest height\", 'QEC Calculator'!$F$24=\"Light: 5 kg (11 lbs.) or less\"),\"4\")","v":false},{"$f":"IF(AND('QEC Calculator'!$F$19=\"at or above shoulder height\", 'QEC Calculator'!$F$24=\"Light: 5 kg (11 lbs.) or less\"),\"6\")","v":false}]
["< 1 hour/day or never",null,"< 1 hour/day or never",null,null,null,null,null,null,null,null,null,"H2",{"$f":"IF(AND('QEC Calculator'!$D$19=\"at or below waist height\", 'QEC Calculator'!$D$24=\"Moderate: 6 - 10 kg (13 - 22 lbs.)\"), \"4\")","v":false},{"$f":"IF(AND('QEC Calculator'!$D$19=\"at about chest height\", 'QEC Calculator'!$D$24=\"Moderate: 6 - 10 kg (13 - 22 lbs.)\"), \"6\")","v":false},{"$f":"IF(AND('QEC Calculator'!$D$19=\"at or above shoulder height\", 'QEC Calculator'!$D$24=\"Moderate: 6 - 10 kg (13 - 22 lbs.)\"), \"8\")","v":false},null,null,null,null,null,null,null,null,null,null,null,"H2",{"$f":"IF(AND('QEC Calculator'!$E$19=\"at or below waist height\", 'QEC Calculator'!$E$24=\"Moderate: 6 - 10 kg (13 - 22 lbs.)\"), \"4\")","v":false},{"$f":"IF(AND('QEC Calculator'!$E$19=\"at about chest height\", 'QEC Calculator'!$E$24=\"Moderate: 6 - 10 kg (13 - 22 lbs.)\"), \"6\")","v":false},{"$f":"IF(AND('QEC Calculator'!$E$19=\"at or above shoulder height\", 'QEC Calculator'!$E$24=\"Moderate: 6 - 10 kg (13 - 22 lbs.)\"), \"8\")","v":false},null,null,null,null,null,null,null,null,null,null,"H2",{"$f":"IF(AND('QEC Calculator'!$F$19=\"at or below waist height\", 'QEC Calculator'!$F$24=\"Moderate: 6 - 10 kg (13 - 22 lbs.)\"), \"4\")","v":false},{"$f":"IF(AND('QEC Calculator'!$F$19=\"at about chest height\", 'QEC Calculator'!$F$24=\"Moderate: 6 - 10 kg (13 - 22 lbs.)\"), \"6\")","v":false},{"$f":"IF(AND('QEC Calculator'!$F$19=\"at or above shoulder height\", 'QEC Calculator'!$F$24=\"Moderate: 6 - 10 kg (13 - 22 lbs.)\"), \"8\")","v":false}]
["1 - 4 hours/day",null,"1 - 4 hours/day",null,null,null,null,null,null,null,null,null,"H3",{"$f":"IF(AND('QEC Calculator'!$D$19=\"at or below waist height\", 'QEC Calculator'!$D$24=\"Heavy: 11 - 20 kg (22 - 44 lbs.)\"), \"6\")","v":false},{"$f":"IF(AND('QEC Calculator'!$D$19=\"at about chest height\", 'QEC Calculator'!$D$24=\"Heavy: 11 - 20 kg (22 - 44 lbs.)\"), \"8\")","v":false},{"$f":"IF(AND('QEC Calculator'!$D$19=\"at or above shoulder height\", 'QEC Calculator'!$D$24=\"Heavy: 11 - 20 kg (22 - 44 lbs.)\"), \"10\")","v":false},null,null,null,null,null,null,null,null,null,null,null,"H3",{"$f":"IF(AND('QEC Calculator'!$E$19=\"at or below waist height\", 'QEC Calculator'!$E$24=\"Heavy: 11 - 20 kg (22 - 44 lbs.)\"), \"6\")","v":false},{"$f":"IF(AND('QEC Calculator'!$E$19=\"at about chest height\", 'QEC Calculator'!$E$24=\"Heavy: 11 - 20 kg (22 - 44 lbs.)\"), \"8\")","v":false},{"$f":"IF(AND('QEC Calculator'!$E$19=\"at or above shoulder height\", 'QEC Calculator'!$E$24=\"Heavy: 11 - 20 kg (22 - 44 lbs.)\"), \"10\")","v":false},null,null,null,null,null,null,null,null,null,null,"H3",{"$f":"IF(AND('QEC Calculator'!$F$19=\"at or below waist height\", 'QEC Calculator'!$F$24=\"Heavy: 11 - 20 kg (22 - 44 lbs.)\"), \"6\")","v":false},{"$f":"IF(AND('QEC Calculator'!$F$19=\"at about chest height\", 'QEC Calculator'!$F$24=\"Heavy: 11 - 20 kg (22 - 44 lbs.)\"), \"8\")","v":false},{"$f":"IF(AND('QEC Calculator'!$F$19=\"at or above shoulder height\", 'QEC Calculator'!$F$24=\"Heavy: 11 - 20 kg (22 - 44 lbs.)\"), \"10\")","v":false}]
["> 4 hours/day",null,"> 4 hours/day",null,null,null,null,null,null,null,null,null,"H4",{"$f":"IF(AND('QEC Calculator'!$D$19=\"at or below waist height\", 'QEC Calculator'!$D$24=\"Very heavy: > 20 kg (44 lbs.)\"), \"8\")","v":false},{"$f":"IF(AND('QEC Calculator'!$D$19=\"at about chest height\", 'QEC Calculator'!$D$24=\"Very heavy: > 20 kg (44 lbs.)\"), \"10\")","v":false},{"$f":"IF(AND('QEC Calculator'!$D$19=\"at or above shoulder height\", 'QEC Calculator'!$D$24=\"Very heavy: > 20 kg (44 lbs.)\"), \"12\")","v":false},{"$f":"+P38+P39+P40+P41+O41+O40+O39+O38+N38+N39+N40+N41","v":0},null,null,null,null,null,null,null,null,null,null,"H4",{"$f":"IF(AND('QEC Calculator'!$E$19=\"at or below waist height\", 'QEC Calculator'!$E$24=\"Very heavy: > 20 kg (44 lbs.)\"), \"8\")","v":false},{"$f":"IF(AND('QEC Calculator'!$E$19=\"at about chest height\", 'QEC Calculator'!$E$24=\"Very heavy: > 20 kg (44 lbs.)\"), \"10\")","v":false},{"$f":"IF(AND('QEC Calculator'!$E$19=\"at or above shoulder height\", 'QEC Calculator'!$E$24=\"Very heavy: > 20 kg (44 lbs.)\"), \"12\")","v":false},{"$f":"+AE38+AE39+AE40+AE41+AD41+AD40+AD39+AD38+AC38+AC39+AC40+AC41","v":0},null,null,null,null,null,null,null,null,null,"H4",{"$f":"IF(AND('QEC Calculator'!$F$19=\"at or below waist height\", 'QEC Calculator'!$F$24=\"Very heavy: > 20 kg (44 lbs.)\"), \"8\")","v":false},{"$f":"IF(AND('QEC Calculator'!$F$19=\"at about chest height\", 'QEC Calculator'!$F$24=\"Very heavy: > 20 kg (44 lbs.)\"), \"10\")","v":false},{"$f":"IF(AND('QEC Calculator'!$F$19=\"at or above shoulder height\", 'QEC Calculator'!$F$24=\"Very heavy: > 20 kg (44 lbs.)\"), \"12\")","v":false},{"$f":"+AS38+AS39+AS40+AS41+AR41+AR40+AR39+AR38+AQ38+AQ39+AQ40+AQ41","v":0}]
[]
["visual",null,"pace",null,null,null,null,null,null,null,null,null,"Height (C) & Duration (J)",null,null,null,null,null,null,null,null,null,null,null,null,null,null,"Height (C) & Duration (J)",null,null,null,null,null,null,null,null,null,null,null,null,null,"Height (C) & Duration (J)"]
["Select",null,"Select",null,null,null,null,null,null,null,null,null,null,"C1","C2","C3",null,null,null,null,null,null,null,null,null,null,null,null,"C1","C2","C3",null,null,null,null,null,null,null,null,null,null,null,"C1","C2","C3"]
["Low: There is almost no need to view fine details.",null,"Never",null,null,null,null,null,null,null,null,null,"J1",{"$f":"IF(AND('QEC Calculator'!$D$19=\"at or below waist height\", 'QEC Calculator'!$D$25=\"Less than 2 hours\"), \"2\")","v":false},{"$f":"IF(AND('QEC Calculator'!$D$19=\"at about chest height\", 'QEC Calculator'!$D$25=\"Less than 2 hours\"), \"4\")","v":false},{"$f":"IF(AND('QEC Calculator'!$D$19=\"at or above shoulder height\", 'QEC Calculator'!$D$25=\"Less than 2 hours\"), \"6\")","v":false},null,null,null,null,null,null,null,null,null,null,null,"J1",{"$f":"IF(AND('QEC Calculator'!$E$19=\"at or below waist height\", 'QEC Calculator'!$E$25=\"Less than 2 hours\"), \"2\")","v":false},{"$f":"IF(AND('QEC Calculator'!$E$19=\"at about chest height\", 'QEC Calculator'!$E$25=\"Less than 2 hours\"), \"4\")","v":false},{"$f":"IF(AND('QEC Calculator'!$E$19=\"at or above shoulder height\", 'QEC Calculator'!$E$25=\"Less than 2 hours\"), \"6\")","v":false},null,null,null,null,null,null,null,null,null,null,"J1",{"$f":"IF(AND('QEC Calculator'!$F$19=\"at or below waist height\", 'QEC Calculator'!$F$25=\"Less than 2 hours\"), \"2\")","v":false},{"$f":"IF(AND('QEC Calculator'!$F$19=\"at about chest height\", 'QEC Calculator'!$F$25=\"Less than 2 hours\"), \"4\")","v":false},{"$f":"IF(AND('QEC Calculator'!$F$19=\"at or above shoulder height\", 'QEC Calculator'!$F$25=\"Less than 2 hours\"), \"6\")","v":false}]
["High: There is a need to view some fine details.",null,"Sometimes",null,null,null,null,null,null,null,null,null,"J2",{"$f":"IF(AND('QEC Calculator'!$D$19=\"at or below waist height\", 'QEC Calculator'!$D$25=\"2 - 4 hours\"), \"4\")","v":false},{"$f":"IF(AND('QEC Calculator'!$D$19=\"at about chest height\", 'QEC Calculator'!$D$25=\"2 - 4 hours\"), \"6\")","v":false},{"$f":"IF(AND('QEC Calculator'!$D$19=\"at or above shoulder height\", 'QEC Calculator'!$D$25=\"2 - 4 hours\"), \"8\")","v":false},null,null,null,null,null,null,null,null,null,null,null,"J2",{"$f":"IF(AND('QEC Calculator'!$E$19=\"at or below waist height\", 'QEC Calculator'!$E$25=\"2 - 4 hours\"), \"4\")","v":false},{"$f":"IF(AND('QEC Calculator'!$E$19=\"at about chest height\", 'QEC Calculator'!$E$25=\"2 - 4 hours\"), \"6\")","v":false},{"$f":"IF(AND('QEC Calculator'!$E$19=\"at or above shoulder height\", 'QEC Calculator'!$E$25=\"2 - 4 hours\"), \"8\")","v":false},null,null,null,null,null,null,null,null,null,null,"J2",{"$f":"IF(AND('QEC Calculator'!$F$19=\"at or below waist height\", 'QEC Calculator'!$F$25=\"2 - 4 hours\"), \"4\")","v":false},{"$f":"IF(AND('QEC Calculator'!$F$19=\"at about chest height\", 'QEC Calculator'!$F$25=\"2 - 4 hours\"), \"6\")","v":false},{"$f":"IF(AND('QEC Calculator'!$F$19=\"at or above shoulder height\", 'QEC Calculator'!$F$25=\"2 - 4 hours\"), \"8\")","v":false}]
[null,null,"Often",null,null,null,null,null,null,null,null,null,"J3",{"$f":"IF(AND('QEC Calculator'!$D$19=\"at or below waist height\", 'QEC Calculator'!$D$25=\"> 4 hours\"), \"6\")","v":false},{"$f":"IF(AND('QEC Calculator'!$D$19=\"at about chest height\", 'QEC Calculator'!$D$25=\"> 4 hours\"), \"8\")","v":false},{"$f":"IF(AND('QEC Calculator'!$D$19=\"at or above shoulder height\", 'QEC Calculator'!$D$25=\"> 4 hours\"), \"10\")","v":false},{"$f":"+P47+O47+N47+N46+O46+P46+P45+O45+N45","v":0},null,null,null,null,null,null,null,null,null,null,"J3",{"$f":"IF(AND('QEC Calculator'!$E$19=\"at or below waist height\", 'QEC Calculator'!$E$25=\"> 4 hours\"), \"6\")","v":false},{"$f":"IF(AND('QEC Calculator'!$E$19=\"at about chest height\", 'QEC Calculator'!$E$25=\"> 4 hours\"), \"8\")","v":false},{"$f":"IF(AND('QEC Calculator'!$E$19=\"at or above shoulder height\", 'QEC Calculator'!$E$25=\"> 4 hours\"), \"10\")","v":false},{"$f":"+AE47+AD47+AC47+AC46+AD46+AE46+AE45+AD45+AC45","v":0},null,null,null,null,null,null,null,null,null,"J3",{"$f":"IF(AND('QEC Calculator'!$F$19=\"at or below waist height\", 'QEC Calculator'!$F$25=\"> 4 hours\"), \"6\")","v":false},{"$f":"IF(AND('QEC Calculator'!$F$19=\"at about chest height\", 'QEC Calculator'!$F$25=\"> 4 hours\"), \"8\")","v":false},{"$f":"IF(AND('QEC Calculator'!$F$19=\"at or above shoulder height\", 'QEC Calculator'!$F$25=\"> 4 hours\"), \"10\")","v":false},{"$f":"+AS47+AR47+AQ47+AQ46+AR46+AS46+AS45+AR45+AQ45","v":0}]
[]
["stress",null,null,null,null,null,null,null,null,null,null,null,"Duration (J) & Weight (H)",null,null,null,null,null,null,null,null,null,null,null,null,null,null,"Duration (J) & Weight (H)",null,null,null,null,null,null,null,null,null,null,null,null,null,"Duration (J) & Weight (H)"]
["Select",null,null,null,null,null,null,null,null,null,null,null,null,"J1","j2","j3",null,null,null,null,null,null,null,null,null,null,null,null,"J1","j2","j3",null,null,null,null,null,null,null,null,null,null,null,"J1","j2","j3"]
["Not at all stressful",null,null,null,null,null,null,null,null,null,null,null,"Duration (J) & Weight (H)",{"$f":"IF(AND('QEC Calculator'!$D$25=\"Less than 2 hours\", 'QEC Calculator'!$D$24=\"Light: 5 kg (11 lbs.) or less\"),\"2\")","v":false},{"$f":"IF(AND('QEC Calculator'!$D$25=\"2 - 4 hours\", 'QEC Calculator'!$D$24=\"Light: 5 kg (11 lbs.) or less\"),\"4\")","v":false},{"$f":"IF(AND('QEC Calculator'!$D$25=\"> 4 hours\", 'QEC Calculator'!$D$24=\"Light: 5 kg (11 lbs.) or less\"),\"6\")","v":false},null,null,null,null,null,null,null,null,null,null,null,"Duration (J) & Weight (H)",{"$f":"IF(AND('QEC Calculator'!$E$25=\"Less than 2 hours\", 'QEC Calculator'!$E$24=\"Light: 5 kg (11 lbs.) or less\"),\"2\")","v":false},{"$f":"IF(AND('QEC Calculator'!$E$25=\"2 - 4 hours\", 'QEC Calculator'!$E$24=\"Light: 5 kg (11 lbs.) or less\"),\"4\")","v":false},{"$f":"IF(AND('QEC Calculator'!$E$25=\"> 4 hours\", 'QEC Calculator'!$E$24=\"Light: 5 kg (11 lbs.) or less\"),\"6\")","v":false},null,null,null,null,null,null,null,null,null,null,"Duration (J) & Weight (H)",{"$f":"IF(AND('QEC Calculator'!$F$25=\"Less than 2 hours\", 'QEC Calculator'!$F$24=\"Light: 5 kg (11 lbs.) or less\"),\"2\")","v":false},{"$f":"IF(AND('QEC Calculator'!$F$25=\"2 - 4 hours\", 'QEC Calculator'!$F$24=\"Light: 5 kg (11 lbs.) or less\"),\"4\")","v":false},{"$f":"IF(AND('QEC Calculator'!$F$25=\"> 4 hours\", 'QEC Calculator'!$F$24=\"Light: 5 kg (11 lbs.) or less\"),\"6\")","v":false}]
["Mildly stressful",null,null,null,null,null,null,null,null,null,null,null,"h2",{"$f":"IF(AND('QEC Calculator'!$D$25=\"Less than 2 hours\", 'QEC Calculator'!$D$24=\"Moderate: 6 - 10 kg (13 - 22 lbs.)\"), \"4\")","v":false},{"$f":"IF(AND('QEC Calculator'!$D$25=\"2 - 4 hours\", 'QEC Calculator'!$D$24=\"Moderate: 6 - 10 kg (13 - 22 lbs.)\"), \"6\")","v":false},{"$f":"IF(AND('QEC Calculator'!$D$25=\"> 4 hours\", 'QEC Calculator'!$D$24=\"Moderate: 6 - 10 kg (13 - 22 lbs.)\"), \"8\")","v":false},null,null,null,null,null,null,null,null,null,null,null,"h2",{"$f":"IF(AND('QEC Calculator'!$E$25=\"Less than 2 hours\", 'QEC Calculator'!$E$24=\"Moderate: 6 - 10 kg (13 - 22 lbs.)\"), \"4\")","v":false},{"$f":"IF(AND('QEC Calculator'!$E$25=\"2 - 4 hours\", 'QEC Calculator'!$E$24=\"Moderate: 6 - 10 kg (13 - 22 lbs.)\"), \"6\")","v":false},{"$f":"IF(AND('QEC Calculator'!$E$25=\"> 4 hours\", 'QEC Calculator'!$E$24=\"Moderate: 6 - 10 kg (13 - 22 lbs.)\"), \"8\")","v":false},null,null,null,null,null,null,null,null,null,null,"h2",{"$f":"IF(AND('QEC Calculator'!$F$25=\"Less than 2 hours\", 'QEC Calculator'!$F$24=\"Moderate: 6 - 10 kg (13 - 22 lbs.)\"), \"4\")","v":false},{"$f":"IF(AND('QEC Calculator'!$F$25=\"2 - 4 hours\", 'QEC Calculator'!$F$24=\"Moderate: 6 - 10 kg (13 - 22 lbs.)\"), \"6\")","v":false},{"$f":"IF(AND('QEC Calculator'!$F$25=\"> 4 hours\", 'QEC Calculator'!$F$24=\"Moderate: 6 - 10 kg (13 - 22 lbs.)\"), \"8\")","v":false}]
["Moderately stressful",null,null,null,null,null,null,null,null,null,null,null,"h3",{"$f":"IF(AND('QEC Calculator'!$D$25=\"Less than 2 hours\", 'QEC Calculator'!$D$24=\"Heavy: 11 - 20 kg (22 - 44 lbs.)\"), \"6\")","v":false},{"$f":"IF(AND('QEC Calculator'!$D$25=\"2 - 4 hours\", 'QEC Calculator'!$D$24=\"Heavy: 11 - 20 kg (22 - 44 lbs.)\"), \"8\")","v":false},{"$f":"IF(AND('QEC Calculator'!$D$25=\"> 4 hours\", 'QEC Calculator'!$D$24=\"Heavy: 11 - 20 kg (22 - 44 lbs.)\"), \"10\")","v":false},null,null,null,null,null,null,null,null,null,null,null,"h3",{"$f":"IF(AND('QEC Calculator'!$E$25=\"Less than 2 hours\", 'QEC Calculator'!$E$24=\"Heavy: 11 - 20 kg (22 - 44 lbs.)\"), \"6\")","v":false},{"$f":"IF(AND('QEC Calculator'!$E$25=\"2 - 4 hours\", 'QEC Calculator'!$E$24=\"Heavy: 11 - 20 kg (22 - 44 lbs.)\"), \"8\")","v":false},{"$f":"IF(AND('QEC Calculator'!$E$25=\"> 4 hours\", 'QEC Calculator'!$E$24=\"Heavy: 11 - 20 kg (22 - 44 lbs.)\"), \"10\")","v":false},null,null,null,null,null,null,null,null,null,null,"h3",{"$f":"IF(AND('QEC Calculator'!$F$25=\"Less than 2 hours\", 'QEC Calculator'!$F$24=\"Heavy: 11 - 20 kg (22 - 44 lbs.)\"), \"6\")","v":false},{"$f":"IF(AND('QEC Calculator'!$F$25=\"2 - 4 hours\", 'QEC Calculator'!$F$24=\"Heavy: 11 - 20 kg (22 - 44 lbs.)\"), \"8\")","v":false},{"$f":"IF(AND('QEC Calculator'!$F$25=\"> 4 hours\", 'QEC Calculator'!$F$24=\"Heavy: 11 - 20 kg (22 - 44 lbs.)\"), \"10\")","v":false}]
["Very Stressful ",null,null,null,null,null,null,null,null,null,null,null,"h4",{"$f":"IF(AND('QEC Calculator'!$D$25=\"Less than 2 hours\", 'QEC Calculator'!$D$24=\"Very heavy: > 20 kg (44 lbs.)\"), \"8\")","v":false},{"$f":"IF(AND('QEC Calculator'!$D$25=\"2 - 4 hours\", 'QEC Calculator'!$D$24=\"Very heavy: > 20 kg (44 lbs.)\"), \"10\")","v":false},{"$f":"IF(AND('QEC Calculator'!$D$25=\"> 4 hours\", 'QEC Calculator'!$D$24=\"Very heavy: > 20 kg (44 lbs.)\"), \"12\")","v":false},{"$f":"+P51+P52+P53+P54+O54+O53+O52+O51+N51+N52+N53+N54","v":0},null,null,null,null,null,null,null,null,null,null,"h4",{"$f":"IF(AND('QEC Calculator'!$E$25=\"Less than 2 hours\", 'QEC Calculator'!$E$24=\"Very heavy: > 20 kg (44 lbs.)\"), \"8\")","v":false},{"$f":"IF(AND('QEC Calculator'!$E$25=\"2 - 4 hours\", 'QEC Calculator'!$E$24=\"Very heavy: > 20 kg (44 lbs.)\"), \"10\")","v":false},{"$f":"IF(AND('QEC Calculator'!$E$25=\"> 4 hours\", 'QEC Calculator'!$E$24=\"Very heavy: > 20 kg (44 lbs.)\"), \"12\")","v":false},{"$f":"+AE51+AE52+AE53+AE54+AD54+AD53+AD52+AD51+AC51+AC52+AC53+AC54","v":0},null,null,null,null,null,null,null,null,null,"h4",{"$f":"IF(AND('QEC Calculator'!$F$25=\"Less than 2 hours\", 'QEC Calculator'!$F$24=\"Very heavy: > 20 kg (44 lbs.)\"), \"8\")","v":false},{"$f":"IF(AND('QEC Calculator'!$F$25=\"2 - 4 hours\", 'QEC Calculator'!$F$24=\"Very heavy: > 20 kg (44 lbs.)\"), \"10\")","v":false},{"$f":"IF(AND('QEC Calculator'!$F$25=\"> 4 hours\", 'QEC Calculator'!$F$24=\"Very heavy: > 20 kg (44 lbs.)\"), \"12\")","v":false},{"$f":"+AS51+AS52+AS53+AS54+AR54+AR53+AR52+AR51+AQ51+AQ52+AQ53+AQ54","v":0}]
[]
[null,null,null,null,null,null,null,null,null,null,null,null,"Frequency (D) & Weight (H)",null,null,null,null,null,null,null,null,null,null,null,null,null,null,"Frequency (D) & Weight (H)",null,null,null,null,null,null,null,null,null,null,null,null,null,"Frequency (D) & Weight (H)"]
[null,null,null,null,null,null,null,null,null,null,null,null,null,"D1","D2","D3",null,null,null,null,null,null,null,null,null,null,null,null,"D1","D2","D3",null,null,null,null,null,null,null,null,null,null,null,"D1","D2","D3"]
[null,null,null,null,null,null,null,null,null,null,null,null,"Duration (J) & Weight (H)",{"$f":"IF(AND('QEC Calculator'!$D$20=\"Infrequent - some intermittent movement.\", 'QEC Calculator'!$D$24=\"Light: 5 kg (11 lbs.) or less\"),\"2\")","v":false},{"$f":"IF(AND('QEC Calculator'!$D$20=\"Frequent - regular movement with some pauses\", 'QEC Calculator'!$D$24=\"Light: 5 kg (11 lbs.) or less\"),\"4\")","v":false},{"$f":"IF(AND('QEC Calculator'!$D$20=\"Very frequent almost continuous movement.\", 'QEC Calculator'!$D$24=\"Light: 5 kg (11 lbs.) or less\"),\"6\")","v":false},null,null,null,null,null,null,null,null,null,null,null,"Duration (J) & Weight (H)",{"$f":"IF(AND('QEC Calculator'!$E$20=\"Infrequent - some intermittent movement.\", 'QEC Calculator'!$E$24=\"Light: 5 kg (11 lbs.) or less\"),\"2\")","v":false},{"$f":"IF(AND('QEC Calculator'!$E$20=\"Frequent - regular movement with some pauses\", 'QEC Calculator'!$E$24=\"Light: 5 kg (11 lbs.) or less\"),\"4\")","v":false},{"$f":"IF(AND('QEC Calculator'!$E$20=\"Very frequent almost continuous movement.\", 'QEC Calculator'!$E$24=\"Light: 5 kg (11 lbs.) or less\"),\"6\")","v":false},null,null,null,null,null,null,null,null,null,null,"Duration (J) & Weight (H)",{"$f":"IF(AND('QEC Calculator'!$F$20=\"Infrequent - some intermittent movement.\", 'QEC Calculator'!$F$24=\"Light: 5 kg (11 lbs.) or less\"),\"2\")","v":false},{"$f":"IF(AND('QEC Calculator'!$F$20=\"Frequent - regular movement with some pauses\", 'QEC Calculator'!$F$24=\"Light: 5 kg (11 lbs.) or less\"),\"4\")","v":false},{"$f":"IF(AND('QEC Calculator'!$F$20=\"Very frequent almost continuous movement.\", 'QEC Calculator'!$F$24=\"Light: 5 kg (11 lbs.) or less\"),\"6\")","v":false}]
[null,null,null,null,null,null,null,null,null,null,null,null,"h2",{"$f":"IF(AND('QEC Calculator'!$D$20=\"Infrequent - some intermittent movement.\", 'QEC Calculator'!$D$24=\"Moderate: 6 - 10 kg (13 - 22 lbs.)\"), \"4\")","v":false},{"$f":"IF(AND('QEC Calculator'!$D$20=\"Frequent - regular movement with some pauses\", 'QEC Calculator'!$D$24=\"Moderate: 6 - 10 kg (13 - 22 lbs.)\"), \"6\")","v":false},{"$f":"IF(AND('QEC Calculator'!$D$20=\"Very frequent almost continuous movement.\", 'QEC Calculator'!$D$24=\"Moderate: 6 - 10 kg (13 - 22 lbs.)\"), \"8\")","v":false},null,null,null,null,null,null,null,null,null,null,null,"h2",{"$f":"IF(AND('QEC Calculator'!$E$20=\"Infrequent - some intermittent movement.\", 'QEC Calculator'!$E$24=\"Moderate: 6 - 10 kg (13 - 22 lbs.)\"), \"4\")","v":false},{"$f":"IF(AND('QEC Calculator'!$E$20=\"Frequent - regular movement with some pauses\", 'QEC Calculator'!$E$24=\"Moderate: 6 - 10 kg (13 - 22 lbs.)\"), \"6\")","v":false},{"$f":"IF(AND('QEC Calculator'!$E$20=\"Very frequent almost continuous movement.\", 'QEC Calculator'!$E$24=\"Moderate: 6 - 10 kg (13 - 22 lbs.)\"), \"8\")","v":false},null,null,null,null,null,null,null,null,null,null,"h2",{"$f":"IF(AND('QEC Calculator'!$F$20=\"Infrequent - some intermittent movement.\", 'QEC Calculator'!$F$24=\"Moderate: 6 - 10 kg (13 - 22 lbs.)\"), \"4\")","v":false},{"$f":"IF(AND('QEC Calculator'!$F$20=\"Frequent - regular movement with some pauses\", 'QEC Calculator'!$F$24=\"Moderate: 6 - 10 kg (13 - 22 lbs.)\"), \"6\")","v":false},{"$f":"IF(AND('QEC Calculator'!$F$20=\"Very frequent almost continuous movement.\", 'QEC Calculator'!$F$24=\"Moderate: 6 - 10 kg (13 - 22 lbs.)\"), \"8\")","v":false}]
[null,null,null,null,null,null,null,null,null,null,null,null,"h3",{"$f":"IF(AND('QEC Calculator'!$D$20=\"Infrequent - some intermittent movement.\", 'QEC Calculator'!$D$24=\"Heavy: 11 - 20 kg (22 - 44 lbs.)\"), \"6\")","v":false},{"$f":"IF(AND('QEC Calculator'!$D$20=\"Frequent - regular movement with some pauses\", 'QEC Calculator'!$D$24=\"Heavy: 11 - 20 kg (22 - 44 lbs.)\"), \"8\")","v":false},{"$f":"IF(AND('QEC Calculator'!$D$20=\"Very frequent almost continuous movement.\", 'QEC Calculator'!$D$24=\"Heavy: 11 - 20 kg (22 - 44 lbs.)\"), \"10\")","v":false},null,null,null,null,null,null,null,null,null,null,null,"h3",{"$f":"IF(AND('QEC Calculator'!$E$20=\"Infrequent - some intermittent movement.\", 'QEC Calculator'!$E$24=\"Heavy: 11 - 20 kg (22 - 44 lbs.)\"), \"6\")","v":false},{"$f":"IF(AND('QEC Calculator'!$E$20=\"Frequent - regular movement with some pauses\", 'QEC Calculator'!$E$24=\"Heavy: 11 - 20 kg (22 - 44 lbs.)\"), \"8\")","v":false},{"$f":"IF(AND('QEC Calculator'!$E$20=\"Very frequent almost continuous movement.\", 'QEC Calculator'!$E$24=\"Heavy: 11 - 20 kg (22 - 44 lbs.)\"), \"10\")","v":false},null,null,null,null,null,null,null,null,null,null,"h3",{"$f":"IF(AND('QEC Calculator'!$F$20=\"Infrequent - some intermittent movement.\", 'QEC Calculator'!$F$24=\"Heavy: 11 - 20 kg (22 - 44 lbs.)\"), \"6\")","v":false},{"$f":"IF(AND('QEC Calculator'!$F$20=\"Frequent - regular movement with some pauses\", 'QEC Calculator'!$F$24=\"Heavy: 11 - 20 kg (22 - 44 lbs.)\"), \"8\")","v":false},{"$f":"IF(AND('QEC Calculator'!$F$20=\"Very frequent almost continuous movement.\", 'QEC Calculator'!$F$24=\"Heavy: 11 - 20 kg (22 - 44 lbs.)\"), \"10\")","v":false}]
[null,null,null,null,null,null,null,null,null,null,null,null,"h4",{"$f":"IF(AND('QEC Calculator'!$D$20=\"Infrequent - some intermittent movement.\", 'QEC Calculator'!$D$24=\"Very heavy: > 20 kg (44 lbs.)\"), \"8\")","v":false},{"$f":"IF(AND('QEC Calculator'!$D$20=\"Frequent - regular movement with some pauses\", 'QEC Calculator'!$D$24=\"Very heavy: > 20 kg (44 lbs.)\"), \"10\")","v":false},{"$f":"IF(AND('QEC Calculator'!$D$20=\"Very frequent almost continuous movement.\", 'QEC Calculator'!$D$24=\"Very heavy: > 20 kg (44 lbs.)\"), \"12\")","v":false},{"$f":"+P58+P59+P60+P61+O61+O60+O59+O58+N58+N59+N60+N61","v":0},null,null,null,null,null,null,null,null,null,null,"h4",{"$f":"IF(AND('QEC Calculator'!$E$20=\"Infrequent - some intermittent movement.\", 'QEC Calculator'!$E$24=\"Very heavy: > 20 kg (44 lbs.)\"), \"8\")","v":false},{"$f":"IF(AND('QEC Calculator'!$E$20=\"Frequent - regular movement with some pauses\", 'QEC Calculator'!$E$24=\"Very heavy: > 20 kg (44 lbs.)\"), \"10\")","v":false},{"$f":"IF(AND('QEC Calculator'!$E$20=\"Very frequent almost continuous movement.\", 'QEC Calculator'!$E$24=\"Very heavy: > 20 kg (44 lbs.)\"), \"12\")","v":false},{"$f":"+AE58+AE59+AE60+AE61+AD61+AD60+AD59+AD58+AC58+AC59+AC60+AC61","v":0},null,null,null,null,null,null,null,null,null,"h4",{"$f":"IF(AND('QEC Calculator'!$F$20=\"Infrequent - some intermittent movement.\", 'QEC Calculator'!$F$24=\"Very heavy: > 20 kg (44 lbs.)\"), \"8\")","v":false},{"$f":"IF(AND('QEC Calculator'!$F$20=\"Frequent - regular movement with some pauses\", 'QEC Calculator'!$F$24=\"Very heavy: > 20 kg (44 lbs.)\"), \"10\")","v":false},{"$f":"IF(AND('QEC Calculator'!$F$20=\"Very frequent almost continuous movement.\", 'QEC Calculator'!$F$24=\"Very heavy: > 20 kg (44 lbs.)\"), \"12\")","v":false},{"$f":"+AS58+AS59+AS60+AS61+AR61+AR60+AR59+AR58+AQ58+AQ59+AQ60+AQ61","v":0}]
[]
[null,null,null,null,null,null,null,null,null,null,null,null,"Frequency (D) & Duration (J)",null,null,null,null,null,null,null,null,null,null,null,null,null,null,"Frequency (D) & Duration (J)",null,null,null,null,null,null,null,null,null,null,null,null,null,"Frequency (D) & Duration (J)"]
[null,null,null,null,null,null,null,null,null,null,null,null,null,"D1","D2","D3",null,null,null,null,null,null,null,null,null,null,null,null,"D1","D2","D3",null,null,null,null,null,null,null,null,null,null,null,"D1","D2","D3"]
[null,null,null,null,null,null,null,null,null,null,null,null,"J1",{"$f":"IF(AND('QEC Calculator'!$D$20=\"Infrequent - some intermittent movement.\", 'QEC Calculator'!$D$25=\"Less than 2 hours\"), \"2\")","v":false},{"$f":"IF(AND('QEC Calculator'!$D$20=\"Frequent - regular movement with some pauses\", 'QEC Calculator'!$D$25=\"Less than 2 hours\"), \"4\")","v":false},{"$f":"IF(AND('QEC Calculator'!$D$20=\"Very frequent almost continuous movement.\", 'QEC Calculator'!$D$25=\"Less than 2 hours\"), \"6\")","v":false},null,null,null,null,null,null,null,null,null,null,null,"J1",{"$f":"IF(AND('QEC Calculator'!$E$20=\"Infrequent - some intermittent movement.\", 'QEC Calculator'!$E$25=\"Less than 2 hours\"), \"2\")","v":false},{"$f":"IF(AND('QEC Calculator'!$E$20=\"Frequent - regular movement with some pauses\", 'QEC Calculator'!$E$25=\"Less than 2 hours\"), \"4\")","v":false},{"$f":"IF(AND('QEC Calculator'!$E$20=\"Very frequent almost continuous movement.\", 'QEC Calculator'!$E$25=\"Less than 2 hours\"), \"6\")","v":false},null,null,null,null,null,null,null,null,null,null,"J1",{"$f":"IF(AND('QEC Calculator'!$F$20=\"Infrequent - some intermittent movement.\", 'QEC Calculator'!$F$25=\"Less than 2 hours\"), \"2\")","v":false},{"$f":"IF(AND('QEC Calculator'!$F$20=\"Frequent - regular movement with some pauses\", 'QEC Calculator'!$F$25=\"Less than 2 hours\"), \"4\")","v":false},{"$f":"IF(AND('QEC Calculator'!$F$20=\"Very frequent almost continuous movement.\", 'QEC Calculator'!$F$25=\"Less than 2 hours\"), \"6\")","v":false}]
[null,null,null,null,null,null,null,null,null,null,null,null,"J2",{"$f":"IF(AND('QEC Calculator'!$D$20=\"Infrequent - some intermittent movement.\", 'QEC Calculator'!$D$25=\"2 - 4 hours\"), \"4\")","v":false},{"$f":"IF(AND('QEC Calculator'!$D$20=\"Frequent - regular movement with some pauses\", 'QEC Calculator'!$D$25=\"2 - 4 hours\"), \"6\")","v":false},{"$f":"IF(AND('QEC Calculator'!$D$20=\"Very frequent almost continuous movement.\", 'QEC Calculator'!$D$25=\"2 - 4 hours\"), \"8\")","v":false},null,null,null,null,null,null,null,null,null,null,null,"J2",{"$f":"IF(AND('QEC Calculator'!$E$20=\"Infrequent - some intermittent movement.\", 'QEC Calculator'!$E$25=\"2 - 4 hours\"), \"4\")","v":false},{"$f":"IF(AND('QEC Calculator'!$E$20=\"Frequent - regular movement with some pauses\", 'QEC Calculator'!$E$25=\"2 - 4 hours\"), \"6\")","v":false},{"$f":"IF(AND('QEC Calculator'!$E$20=\"Very frequent almost continuous movement.\", 'QEC Calculator'!$E$25=\"2 - 4 hours\"), \"8\")","v":false},null,null,null,null,null,null,null,null,null,null,"J2",{"$f":"IF(AND('QEC Calculator'!$F$20=\"Infrequent - some intermittent movement.\", 'QEC Calculator'!$F$25=\"2 - 4 hours\"), \"4\")","v":false},{"$f":"IF(AND('QEC Calculator'!$F$20=\"Frequent - regular movement with some pauses\", 'QEC Calculator'!$F$25=\"2 - 4 hours\"), \"6\")","v":false},{"$f":"IF(AND('QEC Calculator'!$F$20=\"Very frequent almost continuous movement.\", 'QEC Calculator'!$F$25=\"2 - 4 hours\"), \"8\")","v":false}]
[null,null,null,null,null,null,null,null,null,null,null,null,"J3",{"$f":"IF(AND('QEC Calculator'!$D$20=\"Infrequent - some intermittent movement.\", 'QEC Calculator'!$D$25=\"> 4 hours\"), \"6\")","v":false},{"$f":"IF(AND('QEC Calculator'!$D$20=\"Frequent - regular movement with some pauses\", 'QEC Calculator'!$D$25=\"> 4 hours\"), \"8\")","v":false},{"$f":"IF(AND('QEC Calculator'!$D$20=\"Very frequent almost continuous movement.\", 'QEC Calculator'!$D$25=\"> 4 hours\"), \"10\")","v":false},{"$f":"+P67+O67+N67+N66+O66+P66+P65+O65+N65","v":0},null,null,null,null,null,null,null,null,null,null,"J3",{"$f":"IF(AND('QEC Calculator'!$E$20=\"Infrequent - some intermittent movement.\", 'QEC Calculator'!$E$25=\"> 4 hours\"), \"6\")","v":false},{"$f":"IF(AND('QEC Calculator'!$E$20=\"Frequent - regular movement with some pauses\", 'QEC Calculator'!$E$25=\"> 4 hours\"), \"8\")","v":false},{"$f":"IF(AND('QEC Calculator'!$E$20=\"Very frequent almost continuous movement.\", 'QEC Calculator'!$E$25=\"> 4 hours\"), \"10\")","v":false},{"$f":"+AE67+AD67+AC67+AC66+AD66+AE66+AE65+AD65+AC65","v":0},null,null,null,null,null,null,null,null,null,"J3",{"$f":"IF(AND('QEC Calculator'!$F$20=\"Infrequent - some intermittent movement.\", 'QEC Calculator'!$F$25=\"> 4 hours\"), \"6\")","v":false},{"$f":"IF(AND('QEC Calculator'!$F$20=\"Frequent - regular movement with some pauses\", 'QEC Calculator'!$F$25=\"> 4 hours\"), \"8\")","v":false},{"$f":"IF(AND('QEC Calculator'!$F$20=\"Very frequent almost continuous movement.\", 'QEC Calculator'!$F$25=\"> 4 hours\"), \"10\")","v":false},{"$f":"+AS67+AR67+AQ67+AQ66+AR66+AS66+AS65+AR65+AQ65","v":0}]
[]
[null,null,null,null,null,null,null,null,null,null,null,"Wrist/Hand","Repeated Motion anf Forcw",null,null,null,null,null,null,null,null,null,null,null,null,null,"Wrist/Hand","Repeated Motion anf Forcw",null,null,null,null,null,null,null,null,null,null,null,null,"Wrist/Hand","Repeated Motion anf Forcw"]
[null,null,null,null,null,null,null,null,null,null,null,null,null,"F1","F2","F3",null,null,null,null,null,null,null,null,null,null,null,null,"F1","F2","F3",null,null,null,null,null,null,null,null,null,null,null,"F1","F2","F3"]
[null,null,null,null,null,null,null,null,null,null,null,null,"K1",{"$f":"IF(AND('QEC Calculator'!$D$22=\"10 times/minute or less\", 'QEC Calculator'!$D$26=\"Low: less than 1 kg (2.2 lbs.)\"), \"2\")","v":false},{"$f":"IF(AND('QEC Calculator'!$D$22=\"11-20 times/minute\", 'QEC Calculator'!$D$26=\"Low: less than 1 kg (2.2 lbs.)\"), \"4\")","v":false},{"$f":"IF(AND('QEC Calculator'!$D$22=\"> 20 times/minute\", 'QEC Calculator'!$D$26=\"Low: less than 1 kg (2.2 lbs.)\"), \"6\")","v":false},null,null,null,null,null,null,null,null,null,null,null,"K1",{"$f":"IF(AND('QEC Calculator'!$E$22=\"10 times/minute or less\", 'QEC Calculator'!$E$26=\"Low: less than 1 kg (2.2 lbs.)\"), \"2\")","v":false},{"$f":"IF(AND('QEC Calculator'!$E$22=\"11-20 times/minute\", 'QEC Calculator'!$E$26=\"Low: less than 1 kg (2.2 lbs.)\"), \"4\")","v":false},{"$f":"IF(AND('QEC Calculator'!$E$22=\"> 20 times/minute\", 'QEC Calculator'!$E$26=\"Low: less than 1 kg (2.2 lbs.)\"), \"6\")","v":false},null,null,null,null,null,null,null,null,null,null,"K1",{"$f":"IF(AND('QEC Calculator'!$F$22=\"10 times/minute or less\", 'QEC Calculator'!$F$26=\"Low: less than 1 kg (2.2 lbs.)\"), \"2\")","v":false},{"$f":"IF(AND('QEC Calculator'!$F$22=\"11-20 times/minute\", 'QEC Calculator'!$F$26=\"Low: less than 1 kg (2.2 lbs.)\"), \"4\")","v":false},{"$f":"IF(AND('QEC Calculator'!$F$22=\"> 20 times/minute\", 'QEC Calculator'!$F$26=\"Low: less than 1 kg (2.2 lbs.)\"), \"6\")","v":false}]
[null,null,null,null,null,null,null,null,null,null,null,null,"K2",{"$f":"IF(AND('QEC Calculator'!$D$22=\"10 times/minute or less\", 'QEC Calculator'!$D$26=\"Medium: 1 - 4 kg (2.2 - 8.8 lbs.)\"), \"4\")","v":false},{"$f":"IF(AND('QEC Calculator'!$D$22=\"11-20 times/minute\", 'QEC Calculator'!$D$26=\"Medium: 1 - 4 kg (2.2 - 8.8 lbs.)\"), \"6\")","v":false},{"$f":"IF(AND('QEC Calculator'!$D$22=\"> 20 times/minute\", 'QEC Calculator'!$D$26=\"Medium: 1 - 4 kg (2.2 - 8.8 lbs.)\"), \"8\")","v":false},null,null,null,null,null,null,null,null,null,null,null,"K2",{"$f":"IF(AND('QEC Calculator'!$E$22=\"10 times/minute or less\", 'QEC Calculator'!$E$26=\"Medium: 1 - 4 kg (2.2 - 8.8 lbs.)\"), \"4\")","v":false},{"$f":"IF(AND('QEC Calculator'!$E$22=\"11-20 times/minute\", 'QEC Calculator'!$E$26=\"Medium: 1 - 4 kg (2.2 - 8.8 lbs.)\"), \"6\")","v":false},{"$f":"IF(AND('QEC Calculator'!$E$22=\"> 20 times/minute\", 'QEC Calculator'!$E$26=\"Medium: 1 - 4 kg (2.2 - 8.8 lbs.)\"), \"8\")","v":false},null,null,null,null,null,null,null,null,null,null,"K2",{"$f":"IF(AND('QEC Calculator'!$F$22=\"10 times/minute or less\", 'QEC Calculator'!$F$26=\"Medium: 1 - 4 kg (2.2 - 8.8 lbs.)\"), \"4\")","v":false},{"$f":"IF(AND('QEC Calculator'!$F$22=\"11-20 times/minute\", 'QEC Calculator'!$F$26=\"Medium: 1 - 4 kg (2.2 - 8.8 lbs.)\"), \"6\")","v":false},{"$f":"IF(AND('QEC Calculator'!$F$22=\"> 20 times/minute\", 'QEC Calculator'!$F$26=\"Medium: 1 - 4 kg (2.2 - 8.8 lbs.)\"), \"8\")","v":false}]
[null,null,null,null,null,null,null,null,null,null,null,null,"K3",{"$f":"IF(AND('QEC Calculator'!$D$22=\"10 times/minute or less\", 'QEC Calculator'!$D$26=\"High: > 4 kg (8 lbs.)\"), \"6\")","v":false},{"$f":"IF(AND('QEC Calculator'!$D$22=\"11-20 times/minute\", 'QEC Calculator'!$D$26=\"High: > 4 kg (8 lbs.)\"), \"8\")","v":false},{"$f":"IF(AND('QEC Calculator'!$D$22=\"> 20 times/minute\", 'QEC Calculator'!$D$26=\"High: > 4 kg (8 lbs.)\"), \"10\")","v":false},{"$f":"+P73+O73+N73+N72+O72+P72+P71+O71+N71","v":0},null,null,null,null,null,null,null,null,null,null,"K3",{"$f":"IF(AND('QEC Calculator'!$E$22=\"10 times/minute or less\", 'QEC Calculator'!$E$26=\"High: > 4 kg (8 lbs.)\"), \"6\")","v":false},{"$f":"IF(AND('QEC Calculator'!$E$22=\"11-20 times/minute\", 'QEC Calculator'!$E$26=\"High: > 4 kg (8 lbs.)\"), \"8\")","v":false},{"$f":"IF(AND('QEC Calculator'!$E$22=\"> 20 times/minute\", 'QEC Calculator'!$E$26=\"High: > 4 kg (8 lbs.)\"), \"10\")","v":false},{"$f":"+AE73+AD73+AC73+AC72+AD72+AE72+AE71+AD71+AC71","v":0},null,null,null,null,null,null,null,null,null,"K3",{"$f":"IF(AND('QEC Calculator'!$F$22=\"10 times/minute or less\", 'QEC Calculator'!$F$26=\"High: > 4 kg (8 lbs.)\"), \"6\")","v":false},{"$f":"IF(AND('QEC Calculator'!$F$22=\"11-20 times/minute\", 'QEC Calculator'!$F$26=\"High: > 4 kg (8 lbs.)\"), \"8\")","v":false},{"$f":"IF(AND('QEC Calculator'!$F$22=\"> 20 times/minute\", 'QEC Calculator'!$F$26=\"High: > 4 kg (8 lbs.)\"), \"10\")","v":false},{"$f":"+AS73+AR73+AQ73+AQ72+AR72+AS72+AS71+AR71+AQ71","v":0}]
[]
[null,null,null,null,null,null,null,null,null,null,null,null,"Repeated Motion (F) & Duration (J)",null,null,null,null,null,null,null,null,null,null,null,null,null,null,"Repeated Motion (F) & Duration (J)",null,null,null,null,null,null,null,null,null,null,null,null,null,"Repeated Motion (F) & Duration (J)"]
[null,null,null,null,null,null,null,null,null,null,null,null,null,"F1","F2","F3",null,null,null,null,null,null,null,null,null,null,null,null,"F1","F2","F3",null,null,null,null,null,null,null,null,null,null,null,"F1","F2","F3"]
[null,null,null,null,null,null,null,null,null,null,null,null,"J1",{"$f":"IF(AND('QEC Calculator'!$D$22=\"10 times/minute or less\", 'QEC Calculator'!$D$25=\"Less than 2 hours\"), \"2\")","v":false},{"$f":"IF(AND('QEC Calculator'!$D$22=\"11-20 times/minute\", 'QEC Calculator'!$D$25=\"Less than 2 hours\"), \"4\")","v":false},{"$f":"IF(AND('QEC Calculator'!$D$22=\"> 20 times/minute\", 'QEC Calculator'!$D$25=\"Less than 2 hours\"), \"6\")","v":false},null,null,null,null,null,null,null,null,null,null,null,"J1",{"$f":"IF(AND('QEC Calculator'!$E$22=\"10 times/minute or less\", 'QEC Calculator'!$E$25=\"Less than 2 hours\"), \"2\")","v":false},{"$f":"IF(AND('QEC Calculator'!$E$22=\"11-20 times/minute\", 'QEC Calculator'!$E$25=\"Less than 2 hours\"), \"4\")","v":false},{"$f":"IF(AND('QEC Calculator'!$E$22=\"> 20 times/minute\", 'QEC Calculator'!$E$25=\"Less than 2 hours\"), \"6\")","v":false},null,null,null,null,null,null,null,null,null,null,"J1",{"$f":"IF(AND('QEC Calculator'!$F$22=\"10 times/minute or less\", 'QEC Calculator'!$F$25=\"Less than 2 hours\"), \"2\")","v":false},{"$f":"IF(AND('QEC Calculator'!$F$22=\"11-20 times/minute\", 'QEC Calculator'!$F$25=\"Less than 2 hours\"), \"4\")","v":false},{"$f":"IF(AND('QEC Calculator'!$F$22=\"> 20 times/minute\", 'QEC Calculator'!$F$25=\"Less than 2 hours\"), \"6\")","v":false}]
[null,null,null,null,null,null,null,null,null,null,null,null,"J2",{"$f":"IF(AND('QEC Calculator'!$D$22=\"10 times/minute or less\", 'QEC Calculator'!$D$25=\"2 - 4 hours\"), \"4\")","v":false},{"$f":"IF(AND('QEC Calculator'!$D$22=\"11-20 times/minute\", 'QEC Calculator'!$D$25=\"2 - 4 hours\"), \"6\")","v":false},{"$f":"IF(AND('QEC Calculator'!$D$22=\"> 20 times/minute\", 'QEC Calculator'!$D$25=\"2 - 4 hours\"), \"8\")","v":false},null,null,null,null,null,null,null,null,null,null,null,"J2",{"$f":"IF(AND('QEC Calculator'!$E$22=\"10 times/minute or less\", 'QEC Calculator'!$E$25=\"2 - 4 hours\"), \"4\")","v":false},{"$f":"IF(AND('QEC Calculator'!$E$22=\"11-20 times/minute\", 'QEC Calculator'!$E$25=\"2 - 4 hours\"), \"6\")","v":false},{"$f":"IF(AND('QEC Calculator'!$E$22=\"> 20 times/minute\", 'QEC Calculator'!$E$25=\"2 - 4 hours\"), \"8\")","v":false},null,null,null,null,null,null,null,null,null,null,"J2",{"$f":"IF(AND('QEC Calculator'!$F$22=\"10 times/minute or less\", 'QEC Calculator'!$F$25=\"2 - 4 hours\"), \"4\")","v":false},{"$f":"IF(AND('QEC Calculator'!$F$22=\"11-20 times/minute\", 'QEC Calculator'!$F$25=\"2 - 4 hours\"), \"6\")","v":false},{"$f":"IF(AND('QEC Calculator'!$F$22=\"> 20 times/minute\", 'QEC Calculator'!$F$25=\"2 - 4 hours\"), \"8\")","v":false}]
[null,null,null,null,null,null,null,null,null,null,null,null,"J3",{"$f":"IF(AND('QEC Calculator'!$D$22=\"10 times/minute or less\", 'QEC Calculator'!$D$25=\"> 4 hours\"), \"6\")","v":false},{"$f":"IF(AND('QEC Calculator'!$D$22=\"11-20 times/minute\", 'QEC Calculator'!$D$25=\"> 4 hours\"), \"8\")","v":false},{"$f":"IF(AND('QEC Calculator'!$D$22=\"> 20 times/minute\", 'QEC Calculator'!$D$25=\"> 4 hours\"), \"10\")","v":false},{"$f":"+P79+O79+N79+N78+O78+P78+P77+O77+N77","v":0},null,null,null,null,null,null,null,null,null,null,"J3",{"$f":"IF(AND('QEC Calculator'!$E$22=\"10 times/minute or less\", 'QEC Calculator'!$E$25=\"> 4 hours\"), \"6\")","v":false},{"$f":"IF(AND('QEC Calculator'!$E$22=\"11-20 times/minute\", 'QEC Calculator'!$E$25=\"> 4 hours\"), \"8\")","v":false},{"$f":"IF(AND('QEC Calculator'!$E$22=\"> 20 times/minute\", 'QEC Calculator'!$E$25=\"> 4 hours\"), \"10\")","v":false},{"$f":"+AE79+AD79+AC79+AC78+AD78+AE78+AE77+AD77+AC77","v":0},null,null,null,null,null,null,null,null,null,"J3",{"$f":"IF(AND('QEC Calculator'!$F$22=\"10 times/minute or less\", 'QEC Calculator'!$F$25=\"> 4 hours\"), \"6\")","v":false},{"$f":"IF(AND('QEC Calculator'!$F$22=\"11-20 times/minute\", 'QEC Calculator'!$F$25=\"> 4 hours\"), \"8\")","v":false},{"$f":"IF(AND('QEC Calculator'!$F$22=\"> 20 times/minute\", 'QEC Calculator'!$F$25=\"> 4 hours\"), \"10\")","v":false},{"$f":"+AS79+AR79+AQ79+AQ78+AR78+AS78+AS77+AR77+AQ77","v":0}]
[]
[null,null,null,null,null,null,null,null,null,null,null,null,"Duration (J) & Force (K)",null,null,null,null,null,null,null,null,null,null,null,null,null,null,"Duration (J) & Force (K)",null,null,null,null,null,null,null,null,null,null,null,null,null,"Duration (J) & Force (K)"]
[null,null,null,null,null,null,null,null,null,null,null,null,null,"j1","j2","j3",null,null,null,null,null,null,null,null,null,null,null,null,"j1","j2","j3",null,null,null,null,null,null,null,null,null,null,null,"j1","j2","j3"]
[null,null,null,null,null,null,null,null,null,null,null,null,"k1",{"$f":"IF(AND('QEC Calculator'!$D$25=\"Less than 2 hours\", 'QEC Calculator'!$D$26=\"Low: less than 1 kg (2.2 lbs.)\"), \"2\")","v":false},{"$f":"IF(AND('QEC Calculator'!$D$25=\"2 - 4 hours\", 'QEC Calculator'!$D$26=\"Low: less than 1 kg (2.2 lbs.)\"), \"4\")","v":false},{"$f":"IF(AND('QEC Calculator'!$D$25=\"> 4 hours\", 'QEC Calculator'!$D$26=\"Low: less than 1 kg (2.2 lbs.)\"), \"6\")","v":false},null,null,null,null,null,null,null,null,null,null,null,"k1",{"$f":"IF(AND('QEC Calculator'!$E$25=\"Less than 2 hours\", 'QEC Calculator'!$E$26=\"Low: less than 1 kg (2.2 lbs.)\"), \"2\")","v":false},{"$f":"IF(AND('QEC Calculator'!$E$25=\"2 - 4 hours\", 'QEC Calculator'!$E$26=\"Low: less than 1 kg (2.2 lbs.)\"), \"4\")","v":false},{"$f":"IF(AND('QEC Calculator'!$E$25=\"> 4 hours\", 'QEC Calculator'!$E$26=\"Low: less than 1 kg (2.2 lbs.)\"), \"6\")","v":false},null,null,null,null,null,null,null,null,null,null,"k1",{"$f":"IF(AND('QEC Calculator'!$F$25=\"Less than 2 hours\", 'QEC Calculator'!$F$26=\"Low: less than 1 kg (2.2 lbs.)\"), \"2\")","v":false},{"$f":"IF(AND('QEC Calculator'!$F$25=\"2 - 4 hours\", 'QEC Calculator'!$F$26=\"Low: less than 1 kg (2.2 lbs.)\"), \"4\")","v":false},{"$f":"IF(AND('QEC Calculator'!$F$25=\"> 4 hours\", 'QEC Calculator'!$F$26=\"Low: less than 1 kg (2.2 lbs.)\"), \"6\")","v":false}]
[null,null,null,null,null,null,null,null,null,null,null,null,"k2",{"$f":"IF(AND('QEC Calculator'!$D$25=\"Less than 2 hours\", 'QEC Calculator'!$D$26=\"Medium: 1 - 4 kg (2.2 - 8.8 lbs.)\"), \"4\")","v":false},{"$f":"IF(AND('QEC Calculator'!$D$25=\"2 - 4 hours\", 'QEC Calculator'!$D$26=\"Medium: 1 - 4 kg (2.2 - 8.8 lbs.)\"), \"6\")","v":false},{"$f":"IF(AND('QEC Calculator'!$D$25=\"> 4 hours\", 'QEC Calculator'!$D$26=\"Medium: 1 - 4 kg (2.2 - 8.8 lbs.)\"), \"8\")","v":false},null,null,null,null,null,null,null,null,null,null,null,"k2",{"$f":"IF(AND('QEC Calculator'!$E$25=\"Less than 2 hours\", 'QEC Calculator'!$E$26=\"Medium: 1 - 4 kg (2.2 - 8.8 lbs.)\"), \"4\")","v":false},{"$f":"IF(AND('QEC Calculator'!$E$25=\"2 - 4 hours\", 'QEC Calculator'!$E$26=\"Medium: 1 - 4 kg (2.2 - 8.8 lbs.)\"), \"6\")","v":false},{"$f":"IF(AND('QEC Calculator'!$E$25=\"> 4 hours\", 'QEC Calculator'!$E$26=\"Medium: 1 - 4 kg (2.2 - 8.8 lbs.)\"), \"8\")","v":false},null,null,null,null,null,null,null,null,null,null,"k2",{"$f":"IF(AND('QEC Calculator'!$F$25=\"Less than 2 hours\", 'QEC Calculator'!$F$26=\"Medium: 1 - 4 kg (2.2 - 8.8 lbs.)\"), \"4\")","v":false},{"$f":"IF(AND('QEC Calculator'!$F$25=\"2 - 4 hours\", 'QEC Calculator'!$F$26=\"Medium: 1 - 4 kg (2.2 - 8.8 lbs.)\"), \"6\")","v":false},{"$f":"IF(AND('QEC Calculator'!$F$25=\"> 4 hours\", 'QEC Calculator'!$F$26=\"Medium: 1 - 4 kg (2.2 - 8.8 lbs.)\"), \"8\")","v":false}]
[null,null,null,null,null,null,null,null,null,null,null,null,"k3",{"$f":"IF(AND('QEC Calculator'!$D$25=\"Less than 2 hours\", 'QEC Calculator'!$D$26=\"High: > 4 kg (8 lbs.)\"), \"6\")","v":false},{"$f":"IF(AND('QEC Calculator'!$D$25=\"2 - 4 hours\", 'QEC Calculator'!$D$26=\"High: > 4 kg (8 lbs.)\"), \"8\")","v":false},{"$f":"IF(AND('QEC Calculator'!$D$25=\"> 4 hours\", 'QEC Calculator'!$D$26=\"High: > 4 kg (8 lbs.)\"), \"10\")","v":false},{"$f":"+P85+O85+N85+N84+O84+P84+P83+O83+N83","v":0},null,null,null,null,null,null,null,null,null,null,"k3",{"$f":"IF(AND('QEC Calculator'!$E$25=\"Less than 2 hours\", 'QEC Calculator'!$E$26=\"High: > 4 kg (8 lbs.)\"), \"6\")","v":false},{"$f":"IF(AND('QEC Calculator'!$E$25=\"2 - 4 hours\", 'QEC Calculator'!$E$26=\"High: > 4 kg (8 lbs.)\"), \"8\")","v":false},{"$f":"IF(AND('QEC Calculator'!$E$25=\"> 4 hours\", 'QEC Calculator'!$E$26=\"High: > 4 kg (8 lbs.)\"), \"10\")","v":false},{"$f":"+AE85+AD85+AC85+AC84+AD84+AE84+AE83+AD83+AC83","v":0},null,null,null,null,null,null,null,null,null,"k3",{"$f":"IF(AND('QEC Calculator'!$F$25=\"Less than 2 hours\", 'QEC Calculator'!$F$26=\"High: > 4 kg (8 lbs.)\"), \"6\")","v":false},{"$f":"IF(AND('QEC Calculator'!$F$25=\"2 - 4 hours\", 'QEC Calculator'!$F$26=\"High: > 4 kg (8 lbs.)\"), \"8\")","v":false},{"$f":"IF(AND('QEC Calculator'!$F$25=\"> 4 hours\", 'QEC Calculator'!$F$26=\"High: > 4 kg (8 lbs.)\"), \"10\")","v":false},{"$f":"+AS85+AR85+AQ85+AQ84+AR84+AS84+AS83+AR83+AQ83","v":0}]
[]
[]
[null,null,null,null,null,null,null,null,null,null,null,null,"Wrist Posture (E) & Force (K)",null,null,null,null,null,null,null,null,null,null,null,null,null,null,"Wrist Posture (E) & Force (K)",null,null,null,null,null,null,null,null,null,null,null,null,null,"Wrist Posture (E) & Force (K)"]
[null,null,null,null,null,null,null,null,null,null,null,null,null,"e1","e2",null,null,null,null,null,null,null,null,null,null,null,null,null,"e1","e2",null,null,null,null,null,null,null,null,null,null,null,null,"e1","e2"]
[null,null,null,null,null,null,null,null,null,null,null,null,"k1",{"$f":"IF(AND('QEC Calculator'!$D$21=\"almost a straight wrist\", 'QEC Calculator'!$D$26=\"Low: less than 1 kg (2.2 lbs.)\"), \"2\")","v":false},{"$f":"IF(AND('QEC Calculator'!$D$21=\"a deviated or bent wrist\", 'QEC Calculator'!$D$26=\"Low: less than 1 kg (2.2 lbs.)\"), \"4\")","v":false},null,null,null,null,null,null,null,null,null,null,null,null,"k1",{"$f":"IF(AND('QEC Calculator'!$E$21=\"almost a straight wrist\", 'QEC Calculator'!$E$26=\"Low: less than 1 kg (2.2 lbs.)\"), \"2\")","v":false},{"$f":"IF(AND('QEC Calculator'!$E$21=\"a deviated or bent wrist\", 'QEC Calculator'!$E$26=\"Low: less than 1 kg (2.2 lbs.)\"), \"4\")","v":false},null,null,null,null,null,null,null,null,null,null,null,"k1",{"$f":"IF(AND('QEC Calculator'!$F$21=\"almost a straight wrist\", 'QEC Calculator'!$F$26=\"Low: less than 1 kg (2.2 lbs.)\"), \"2\")","v":false},{"$f":"IF(AND('QEC Calculator'!$F$21=\"a deviated or bent wrist\", 'QEC Calculator'!$F$26=\"Low: less than 1 kg (2.2 lbs.)\"), \"4\")","v":false}]
[null,null,null,null,null,null,null,null,null,null,null,null,"k2",{"$f":"IF(AND('QEC Calculator'!$D$21=\"almost a straight wrist\", 'QEC Calculator'!$D$26=\"Medium: 1 - 4 kg (2.2 - 8.8 lbs.)\"), \"4\")","v":false},{"$f":"IF(AND('QEC Calculator'!$D$21=\"a deviated or bent wrist\", 'QEC Calculator'!$D$26=\"Medium: 1 - 4 kg (2.2 - 8.8 lbs.)\"), \"6\")","v":false},null,null,null,null,null,null,null,null,null,null,null,null,"k2",{"$f":"IF(AND('QEC Calculator'!$E$21=\"almost a straight wrist\", 'QEC Calculator'!$E$26=\"Medium: 1 - 4 kg (2.2 - 8.8 lbs.)\"), \"4\")","v":false},{"$f":"IF(AND('QEC Calculator'!$E$21=\"a deviated or bent wrist\", 'QEC Calculator'!$E$26=\"Medium: 1 - 4 kg (2.2 - 8.8 lbs.)\"), \"6\")","v":false},null,null,null,null,null,null,null,null,null,null,null,"k2",{"$f":"IF(AND('QEC Calculator'!$F$21=\"almost a straight wrist\", 'QEC Calculator'!$F$26=\"Medium: 1 - 4 kg (2.2 - 8.8 lbs.)\"), \"4\")","v":false},{"$f":"IF(AND('QEC Calculator'!$F$21=\"a deviated or bent wrist\", 'QEC Calculator'!$F$26=\"Medium: 1 - 4 kg (2.2 - 8.8 lbs.)\"), \"6\")","v":false}]
[null,null,null,null,null,null,null,null,null,null,null,null,"k3",{"$f":"IF(AND('QEC Calculator'!$D$21=\"almost a straight wrist\", 'QEC Calculator'!$D$26=\"High: > 4 kg (8 lbs.)\"), \"6\")","v":false},{"$f":"IF(AND('QEC Calculator'!$D$21=\"a deviated or bent wrist\", 'QEC Calculator'!$D$26=\"High: > 4 kg (8 lbs.)\"), \"8\")","v":false},null,{"$f":"+P92+O92+N92+N91+O91+P91+P90+O90+N90","v":0},null,null,null,null,null,null,null,null,null,null,"k3",{"$f":"IF(AND('QEC Calculator'!$E$21=\"almost a straight wrist\", 'QEC Calculator'!$E$26=\"High: > 4 kg (8 lbs.)\"), \"6\")","v":false},{"$f":"IF(AND('QEC Calculator'!$E$21=\"a deviated or bent wrist\", 'QEC Calculator'!$E$26=\"High: > 4 kg (8 lbs.)\"), \"8\")","v":false},null,{"$f":"+AE92+AD92+AC92+AC91+AD91+AE91+AE90+AD90+AC90","v":0},null,null,null,null,null,null,null,null,null,"k3",{"$f":"IF(AND('QEC Calculator'!$F$21=\"almost a straight wrist\", 'QEC Calculator'!$F$26=\"High: > 4 kg (8 lbs.)\"), \"6\")","v":false},{"$f":"IF(AND('QEC Calculator'!$F$21=\"a deviated or bent wrist\", 'QEC Calculator'!$F$26=\"High: > 4 kg (8 lbs.)\"), \"8\")","v":false},null,{"$f":"+AS92+AR92+AQ92+AQ91+AR91+AS91+AS90+AR90+AQ90","v":0}]
[]
[null,null,null,null,null,null,null,null,null,null,null,null,"Wrist Posture (E) & Duration (J)",null,null,null,null,null,null,null,null,null,null,null,null,null,null,"Wrist Posture (E) & Duration (J)",null,null,null,null,null,null,null,null,null,null,null,null,null,"Wrist Posture (E) & Duration (J)"]
[null,null,null,null,null,null,null,null,null,null,null,null,null,"e1","e2",null,null,null,null,null,null,null,null,null,null,null,null,null,"e1","e2",null,null,null,null,null,null,null,null,null,null,null,null,"e1","e2"]
[null,null,null,null,null,null,null,null,null,null,null,null,"J1",{"$f":"IF(AND('QEC Calculator'!$D$21=\"almost a straight wrist\", 'QEC Calculator'!$D$25=\"Less than 2 hours\"), \"2\")","v":false},{"$f":"IF(AND('QEC Calculator'!$D$21=\"a deviated or bent wrist\", 'QEC Calculator'!$D$25=\"Less than 2 hours\"), \"4\")","v":false},null,null,null,null,null,null,null,null,null,null,null,null,"J1",{"$f":"IF(AND('QEC Calculator'!$E$21=\"almost a straight wrist\", 'QEC Calculator'!$E$25=\"Less than 2 hours\"), \"2\")","v":false},{"$f":"IF(AND('QEC Calculator'!$E$21=\"a deviated or bent wrist\", 'QEC Calculator'!$E$25=\"Less than 2 hours\"), \"4\")","v":false},null,null,null,null,null,null,null,null,null,null,null,"J1",{"$f":"IF(AND('QEC Calculator'!$F$21=\"almost a straight wrist\", 'QEC Calculator'!$F$25=\"Less than 2 hours\"), \"2\")","v":false},{"$f":"IF(AND('QEC Calculator'!$F$21=\"a deviated or bent wrist\", 'QEC Calculator'!$F$25=\"Less than 2 hours\"), \"4\")","v":false}]
[null,null,null,null,null,null,null,null,null,null,null,null,"J2",{"$f":"IF(AND('QEC Calculator'!$D$21=\"almost a straight wrist\", 'QEC Calculator'!$D$25=\"2 - 4 hours\"), \"4\")","v":false},{"$f":"IF(AND('QEC Calculator'!$D$21=\"a deviated or bent wrist\", 'QEC Calculator'!$D$25=\"2 - 4 hours\"), \"6\")","v":false},null,null,null,null,null,null,null,null,null,null,null,null,"J2",{"$f":"IF(AND('QEC Calculator'!$E$21=\"almost a straight wrist\", 'QEC Calculator'!$E$25=\"2 - 4 hours\"), \"4\")","v":false},{"$f":"IF(AND('QEC Calculator'!$E$21=\"a deviated or bent wrist\", 'QEC Calculator'!$E$25=\"2 - 4 hours\"), \"6\")","v":false},null,null,null,null,null,null,null,null,null,null,null,"J2",{"$f":"IF(AND('QEC Calculator'!$F$21=\"almost a straight wrist\", 'QEC Calculator'!$F$25=\"2 - 4 hours\"), \"4\")","v":false},{"$f":"IF(AND('QEC Calculator'!$F$21=\"a deviated or bent wrist\", 'QEC Calculator'!$F$25=\"2 - 4 hours\"), \"6\")","v":false}]
[null,null,null,null,null,null,null,null,null,null,null,null,"J3",{"$f":"IF(AND('QEC Calculator'!$D$21=\"almost a straight wrist\", 'QEC Calculator'!$D$25=\"> 4 hours\"), \"6\")","v":false},{"$f":"IF(AND('QEC Calculator'!$D$21=\"a deviated or bent wrist\", 'QEC Calculator'!$D$25=\"> 4 hours\"), \"8\")","v":false},null,{"$f":"+P98+O98+N98+N97+O97+P97+P96+O96+N96","v":0},null,null,null,null,null,null,null,null,null,null,"J3",{"$f":"IF(AND('QEC Calculator'!$E$21=\"almost a straight wrist\", 'QEC Calculator'!$E$25=\"> 4 hours\"), \"6\")","v":false},{"$f":"IF(AND('QEC Calculator'!$E$21=\"a deviated or bent wrist\", 'QEC Calculator'!$E$25=\"> 4 hours\"), \"8\")","v":false},null,{"$f":"+AE98+AD98+AC98+AC97+AD97+AE97+AE96+AD96+AC96","v":0},null,null,null,null,null,null,null,null,null,"J3",{"$f":"IF(AND('QEC Calculator'!$F$21=\"almost a straight wrist\", 'QEC Calculator'!$F$25=\"> 4 hours\"), \"6\")","v":false},{"$f":"IF(AND('QEC Calculator'!$F$21=\"a deviated or bent wrist\", 'QEC Calculator'!$F$25=\"> 4 hours\"), \"8\")","v":false},null,{"$f":"+AS98+AR98+AQ98+AQ97+AR97+AS97+AS96+AR96+AQ96","v":0}]
[]
[null,null,null,null,null,null,null,null,null,null,null,"Neck","Neck Posture (G) & Duration (J)",null,null,null,null,null,null,null,null,null,null,null,null,null,"Neck","Neck Posture (G) & Duration (J)",null,null,null,null,null,null,null,null,null,null,null,null,"Neck","Neck Posture (G) & Duration (J)"]
[null,null,null,null,null,null,null,null,null,null,null,null,"g1","g2","g3",null,null,null,null,null,null,null,null,null,null,null,null,"g1","g2","g3",null,null,null,null,null,null,null,null,null,null,null,"g1","g2","g3"]
[null,null,null,null,null,null,null,null,null,null,null,"J1",{"$f":"IF(AND('QEC Calculator'!$D$23=\"No\", 'QEC Calculator'!$D$25=\"Less than 2 hours\"), \"2\")","v":false},{"$f":"IF(AND('QEC Calculator'!$D$23=\"Yes, occasionally\", 'QEC Calculator'!$D$25=\"Less than 2 hours\"), \"4\")","v":false},{"$f":"IF(AND('QEC Calculator'!$D$23=\"Yes, continuously\", 'QEC Calculator'!$D$25=\"Less than 2 hours\"), \"6\")","v":false},null,null,null,null,null,null,null,null,null,null,null,"J1",{"$f":"IF(AND('QEC Calculator'!$E$23=\"No\", 'QEC Calculator'!$E$25=\"Less than 2 hours\"), \"2\")","v":false},{"$f":"IF(AND('QEC Calculator'!$E$23=\"Yes, occasionally\", 'QEC Calculator'!$E$25=\"Less than 2 hours\"), \"4\")","v":false},{"$f":"IF(AND('QEC Calculator'!$E$23=\"Yes, continuously\", 'QEC Calculator'!$E$25=\"Less than 2 hours\"), \"6\")","v":false},null,null,null,null,null,null,null,null,null,null,"J1",{"$f":"IF(AND('QEC Calculator'!$F$23=\"No\", 'QEC Calculator'!$F$25=\"Less than 2 hours\"), \"2\")","v":false},{"$f":"IF(AND('QEC Calculator'!$F$23=\"Yes, occasionally\", 'QEC Calculator'!$F$25=\"Less than 2 hours\"), \"4\")","v":false},{"$f":"IF(AND('QEC Calculator'!$F$23=\"Yes, continuously\", 'QEC Calculator'!$F$25=\"Less than 2 hours\"), \"6\")","v":false}]
[null,null,null,null,null,null,null,null,null,null,null,"J2",{"$f":"IF(AND('QEC Calculator'!$D$23=\"No\", 'QEC Calculator'!$D$25=\"2 - 4 hours\"), \"4\")","v":false},{"$f":"IF(AND('QEC Calculator'!$D$23=\"Yes, occasionally\", 'QEC Calculator'!$D$25=\"2 - 4 hours\"), \"6\")","v":false},{"$f":"IF(AND('QEC Calculator'!$D$23=\"Yes, continuously\", 'QEC Calculator'!$D$25=\"2 - 4 hours\"), \"8\")","v":false},null,null,null,null,null,null,null,null,null,null,null,"J2",{"$f":"IF(AND('QEC Calculator'!$E$23=\"No\", 'QEC Calculator'!$E$25=\"2 - 4 hours\"), \"4\")","v":false},{"$f":"IF(AND('QEC Calculator'!$E$23=\"Yes, occasionally\", 'QEC Calculator'!$E$25=\"2 - 4 hours\"), \"6\")","v":false},{"$f":"IF(AND('QEC Calculator'!$E$23=\"Yes, continuously\", 'QEC Calculator'!$E$25=\"2 - 4 hours\"), \"8\")","v":false},null,null,null,null,null,null,null,null,null,null,"J2",{"$f":"IF(AND('QEC Calculator'!$F$23=\"No\", 'QEC Calculator'!$F$25=\"2 - 4 hours\"), \"4\")","v":false},{"$f":"IF(AND('QEC Calculator'!$F$23=\"Yes, occasionally\", 'QEC Calculator'!$F$25=\"2 - 4 hours\"), \"6\")","v":false},{"$f":"IF(AND('QEC Calculator'!$F$23=\"Yes, continuously\", 'QEC Calculator'!$F$25=\"2 - 4 hours\"), \"8\")","v":false}]
[null,null,null,null,null,null,null,null,null,null,null,"J3",{"$f":"IF(AND('QEC Calculator'!$D$23=\"No\", 'QEC Calculator'!$D$25=\"> 4 hours\"), \"6\")","v":false},{"$f":"IF(AND('QEC Calculator'!$D$23=\"Yes, occasionally\", 'QEC Calculator'!$D$25=\"> 4 hours\"), \"8\")","v":false},{"$f":"IF(AND('QEC Calculator'!$D$23=\"Yes, continuously\", 'QEC Calculator'!$D$25=\"> 4 hours\"), \"10\")","v":false},null,{"$f":"+O104+N104+M104+M103+N103+O103+O102+N102+M102","v":0},null,null,null,null,null,null,null,null,null,"J3",{"$f":"IF(AND('QEC Calculator'!$E$23=\"No\", 'QEC Calculator'!$E$25=\"> 4 hours\"), \"6\")","v":false},{"$f":"IF(AND('QEC Calculator'!$E$23=\"Yes, occasionally\", 'QEC Calculator'!$E$25=\"> 4 hours\"), \"8\")","v":false},{"$f":"IF(AND('QEC Calculator'!$E$23=\"Yes, continuously\", 'QEC Calculator'!$E$25=\"> 4 hours\"), \"10\")","v":false},null,{"$f":"+AD104+AC104+AB104+AB103+AC103+AD103+AD102+AC102+AB102","v":0},null,null,null,null,null,null,null,null,"J3",{"$f":"IF(AND('QEC Calculator'!$F$23=\"No\", 'QEC Calculator'!$F$25=\"> 4 hours\"), \"6\")","v":false},{"$f":"IF(AND('QEC Calculator'!$F$23=\"Yes, occasionally\", 'QEC Calculator'!$F$25=\"> 4 hours\"), \"8\")","v":false},{"$f":"IF(AND('QEC Calculator'!$F$23=\"Yes, continuously\", 'QEC Calculator'!$F$25=\"> 4 hours\"), \"10\")","v":false},null,{"$f":"+AR104+AQ104+AP104+AP103+AQ103+AR103+AR102+AQ102+AP102","v":0}]
[]
[null,null,null,null,null,null,null,null,null,null,null,null,"Visual Demand (L) & Duration (J)",null,null,null,null,null,null,null,null,null,null,null,null,null,null,"Visual Demand (L) & Duration (J)",null,null,null,null,null,null,null,null,null,null,null,null,null,"Visual Demand (L) & Duration (J)"]
[null,null,null,null,null,null,null,null,null,null,null,null,"L1","L2",null,null,null,null,null,null,null,null,null,null,null,null,null,"L1","L2",null,null,null,null,null,null,null,null,null,null,null,null,"L1","L2"]
[null,null,null,null,null,null,null,null,null,null,null,"J1",{"$f":"IF(AND('QEC Calculator'!$D$29=\"Low: There is almost no need to view fine details.\", 'QEC Calculator'!$D$25=\"Less than 2 hours\"), \"2\")","v":false},{"$f":"IF(AND('QEC Calculator'!$D$29=\"High: There is a need to view some fine details.\", 'QEC Calculator'!$D$25=\"Less than 2 hours\"), \"4\")","v":false},null,null,null,null,null,null,null,null,null,null,null,null,"J1",{"$f":"IF(AND('QEC Calculator'!$E$29=\"Low: There is almost no need to view fine details.\", 'QEC Calculator'!$E$25=\"Less than 2 hours\"), \"2\")","v":false},{"$f":"IF(AND('QEC Calculator'!$E$29=\"High: There is a need to view some fine details.\", 'QEC Calculator'!$E$25=\"Less than 2 hours\"), \"4\")","v":false},null,null,null,null,null,null,null,null,null,null,null,"J1",{"$f":"IF(AND('QEC Calculator'!$F$29=\"Low: There is almost no need to view fine details.\", 'QEC Calculator'!$F$25=\"Less than 2 hours\"), \"2\")","v":false},{"$f":"IF(AND('QEC Calculator'!$F$29=\"High: There is a need to view some fine details.\", 'QEC Calculator'!$F$25=\"Less than 2 hours\"), \"4\")","v":false}]
[null,null,null,null,null,null,null,null,null,null,null,"J2",{"$f":"IF(AND('QEC Calculator'!$D$29=\"Low: There is almost no need to view fine details.\", 'QEC Calculator'!$D$25=\"2 - 4 hours\"), \"4\")","v":false},{"$f":"IF(AND('QEC Calculator'!$D$29=\"High: There is a need to view some fine details.\", 'QEC Calculator'!$D$25=\"2 - 4 hours\"), \"6\")","v":false},null,null,null,null,null,null,null,null,null,null,null,null,"J2",{"$f":"IF(AND('QEC Calculator'!$E$29=\"Low: There is almost no need to view fine details.\", 'QEC Calculator'!$E$25=\"2 - 4 hours\"), \"4\")","v":false},{"$f":"IF(AND('QEC Calculator'!$E$29=\"High: There is a need to view some fine details.\", 'QEC Calculator'!$E$25=\"2 - 4 hours\"), \"6\")","v":false},null,null,null,null,null,null,null,null,null,null,null,"J2",{"$f":"IF(AND('QEC Calculator'!$F$29=\"Low: There is almost no need to view fine details.\", 'QEC Calculator'!$F$25=\"2 - 4 hours\"), \"4\")","v":false},{"$f":"IF(AND('QEC Calculator'!$F$29=\"High: There is a need to view some fine details.\", 'QEC Calculator'!$F$25=\"2 - 4 hours\"), \"6\")","v":false}]
[null,null,null,null,null,null,null,null,null,null,null,"J3",{"$f":"IF(AND('QEC Calculator'!$D$29=\"Low: There is almost no need to view fine details.\", 'QEC Calculator'!$D$25=\"> 4 hours\"), \"6\")","v":false},{"$f":"IF(AND('QEC Calculator'!$D$29=\"High: There is a need to view some fine details.\", 'QEC Calculator'!$D$25=\"> 4 hours\"), \"8\")","v":false},null,null,{"$f":"+O110+N110+M110+M109+N109+O109+O108+N108+M108","v":0},null,null,null,null,null,null,null,null,null,"J3",{"$f":"IF(AND('QEC Calculator'!$E$29=\"Low: There is almost no need to view fine details.\", 'QEC Calculator'!$E$25=\"> 4 hours\"), \"6\")","v":false},{"$f":"IF(AND('QEC Calculator'!$E$29=\"High: There is a need to view some fine details.\", 'QEC Calculator'!$E$25=\"> 4 hours\"), \"8\")","v":false},null,null,{"$f":"+AD110+AC110+AB110+AB109+AC109+AD109+AD108+AC108+AB108","v":0},null,null,null,null,null,null,null,null,"J3",{"$f":"IF(AND('QEC Calculator'!$F$29=\"Low: There is almost no need to view fine details.\", 'QEC Calculator'!$F$25=\"> 4 hours\"), \"6\")","v":false},{"$f":"IF(AND('QEC Calculator'!$F$29=\"High: There is a need to view some fine details.\", 'QEC Calculator'!$F$25=\"> 4 hours\"), \"8\")","v":false},null,null,{"$f":"+AR110+AQ110+AP110+AP109+AQ109+AR109+AR108+AQ108+AP108","v":0}]
[]
[null,null,null,null,null,null,null,null,null,null,null,"Driving","m1","m2","m3",null,null,null,null,null,null,null,null,null,null,null,"Driving","m1","m2","m3",null,null,null,null,null,null,null,null,null,null,"Driving","m1","m2","m3"]
[null,null,null,null,null,null,null,null,null,null,null,null,{"$f":"IF(AND('QEC Calculator'!$D$28=\"< 1 hour/day or never\"), \"1\")","v":false},{"$f":"IF(AND('QEC Calculator'!$D$28=\"1 - 4 hours/day\"), \"4\")","v":false},{"$f":"IF(AND('QEC Calculator'!$D$28=\"> 4 hours/day\"), \"9\")","v":false},null,{"$f":"+O113+N113+M113","v":0},null,null,null,null,null,null,null,null,null,null,{"$f":"IF(AND('QEC Calculator'!$E$28=\"< 1 hour/day or never\"), \"1\")","v":false},{"$f":"IF(AND('QEC Calculator'!$E$28=\"1 - 4 hours/day\"), \"4\")","v":false},{"$f":"IF(AND('QEC Calculator'!$E$28=\"> 4 hours/day\"), \"9\")","v":false},null,{"$f":"+AD113+AC113+AB113","v":0},null,null,null,null,null,null,null,null,null,{"$f":"IF(AND('QEC Calculator'!$F$28=\"< 1 hour/day or never\"), \"1\")","v":false},{"$f":"IF(AND('QEC Calculator'!$F$28=\"1 - 4 hours/day\"), \"4\")","v":false},{"$f":"IF(AND('QEC Calculator'!$F$28=\"> 4 hours/day\"), \"9\")","v":false},null,{"$f":"+AR113+AQ113+AP113","v":0}]
[]
[null,null,null,null,null,null,null,null,null,null,null,"Vibration","n1","n2","n3",null,null,null,null,null,null,null,null,null,null,null,"Vibration","n1","n2","n3",null,null,null,null,null,null,null,null,null,null,"Vibration","n1","n2","n3"]
[null,null,null,null,null,null,null,null,null,null,null,null,{"$f":"IF(AND('QEC Calculator'!$D$27=\"< 1 hour/day or never\"), \"1\")","v":false},{"$f":"IF(AND('QEC Calculator'!$D$27=\"1 - 4 hours/day\"), \"4\")","v":false},{"$f":"IF(AND('QEC Calculator'!$D$27=\"> 4 hours/day\"), \"9\")","v":false},null,{"$f":"+O116+N116+M116","v":0},null,null,null,null,null,null,null,null,null,null,{"$f":"IF(AND('QEC Calculator'!$E$27=\"< 1 hour/day or never\"), \"1\")","v":false},{"$f":"IF(AND('QEC Calculator'!$E$27=\"1 - 4 hours/day\"), \"4\")","v":false},{"$f":"IF(AND('QEC Calculator'!$E$27=\"> 4 hours/day\"), \"9\")","v":false},null,{"$f":"+AD116+AC116+AB116","v":0},null,null,null,null,null,null,null,null,null,{"$f":"IF(AND('QEC Calculator'!$F$27=\"< 1 hour/day or never\"), \"1\")","v":false},{"$f":"IF(AND('QEC Calculator'!$F$27=\"1 - 4 hours/day\"), \"4\")","v":false},{"$f":"IF(AND('QEC Calculator'!$F$27=\"> 4 hours/day\"), \"9\")","v":false},null,{"$f":"+AR116+AQ116+AP116","v":0}]
[]
[null,null,null,null,null,null,null,null,null,null,null,"Work Pace","p1","p2","p3",null,null,null,null,null,null,null,null,null,null,null,"Work Pace","p1","p2","p3",null,null,null,null,null,null,null,null,null,null,"Work Pace","p1","p2","p3"]
[null,null,null,null,null,null,null,null,null,null,null,null,{"$f":"IF(AND('QEC Calculator'!$D$30=\"Never\"), \"1\")","v":false},{"$f":"IF(AND('QEC Calculator'!$D$30=\"Sometimes\"), \"4\")","v":false},{"$f":"IF(AND('QEC Calculator'!$D$30=\"Often\"), \"9\")","v":false},null,{"$f":"+O119+N119+M119","v":0},null,null,null,null,null,null,null,null,null,null,{"$f":"IF(AND('QEC Calculator'!$E$30=\"Never\"), \"1\")","v":false},{"$f":"IF(AND('QEC Calculator'!$E$30=\"Sometimes\"), \"4\")","v":false},{"$f":"IF(AND('QEC Calculator'!$E$30=\"Often\"), \"9\")","v":false},null,{"$f":"+AD119+AC119+AB119","v":0},null,null,null,null,null,null,null,null,null,{"$f":"IF(AND('QEC Calculator'!$F$30=\"Never\"), \"1\")","v":false},{"$f":"IF(AND('QEC Calculator'!$F$30=\"Sometimes\"), \"4\")","v":false},{"$f":"IF(AND('QEC Calculator'!$F$30=\"Often\"), \"9\")","v":false},null,{"$f":"+AR119+AQ119+AP119","v":0}]
[]
[null,null,null,null,null,null,null,null,null,null,null,"Stress",null,null,null,null,null,null,null,null,null,null,null,null,null,null,"Stress",null,null,null,null,null,null,null,null,null,null,null,null,null,"Stress"]
[null,null,null,null,null,null,null,null,null,null,null,null,{"$f":"IF(AND('QEC Calculator'!$D$31=\"Not at all stressful\"), \"1\")","v":false},{"$f":"IF(AND('QEC Calculator'!$D$31=\"Mildly stressful\"), \"4\")","v":false},{"$f":"IF(AND('QEC Calculator'!$D$31=\"Moderately stressful\"), \"9\")","v":false},{"$f":"IF(AND('QEC Calculator'!$D$31=\"Very Stressful \"), \"16\")","v":false},{"$f":"+P122+O122+N122","v":0},null,null,null,null,null,null,null,null,null,null,{"$f":"IF(AND('QEC Calculator'!$E$31=\"Not at all stressful\"), \"1\")","v":false},{"$f":"IF(AND('QEC Calculator'!$E$31=\"Mildly stressful\"), \"4\")","v":false},{"$f":"IF(AND('QEC Calculator'!$E$31=\"Moderately stressful\"), \"9\")","v":false},{"$f":"IF(AND('QEC Calculator'!$E$31=\"Very Stressful \"), \"16\")","v":false},{"$f":"+AE122+AD122+AC122","v":0},null,null,null,null,null,null,null,null,null,{"$f":"IF(AND('QEC Calculator'!$F$31=\"Not at all stressful\"), \"1\")","v":false},{"$f":"IF(AND('QEC Calculator'!$F$31=\"Mildly stressful\"), \"4\")","v":false},{"$f":"IF(AND('QEC Calculator'!$F$31=\"Moderately stressful\"), \"9\")","v":false},{"$f":"IF(AND('QEC Calculator'!$F$31=\"Very Stressful \"), \"16\")","v":false},{"$f":"+AS122+AR122+AQ122","v":0}]